{"text_format":"1","workbook":"xlsx","n_sheets":10,"sheets":["Combined Aggregate","Ladies","Men","Mixed","Singles","Natl Champs","Aggregate","40 Year Allstars","Western Canada","40 Year Data- Don't Print"],"not_rendered":{"charts":0,"images":0,"macros":1,"external_links":0,"defined_names":7,"comments":0,"pivot_tables":0},"unopened":[],"bounds":{"document_bytes":16777216,"sheet_cells":100000,"rows_first":2000,"rows_last":500,"rows_between":2000,"halvings":0,"cell_chars":16384,"cell_head_chars":4096},"cells_cut":0,"cells_raw":0,"read":"whole","date_system":"1900"}

{"sheet":"Combined Aggregate","index":0,"n_rows":393,"n_cols":11,"rows_kept":393,"cut":false,"hidden":false,"merged":[]}
["ALBERTA OPEN PROVINCIAL CHAMPIONS"]
["National Champions are highlighted in bold"]
[]
["Event",null,1974,null,{"$f":"+C4+1","v":1975},null,{"$f":"+E4+1","v":1976},null,{"$f":"+G4+1","v":1977},null,{"$f":"+I4+1","v":1978}]
[]
["Singles",null,"EDMONTON",null,"EDMONTON",null,"EDMONTON",null,"SOUTHERN",null,"NORTHERN"]
["Ladies",null,"Ebba Anderson",null,"Shar Plato",null,"Shar Plato",null,"Lyndell Brekko",null,"Jan Bennett"]
[]
["Singles",null,"EDMONTON",null,"CENTRAL",null,"CALGARY",null,"CENTRAL *",null,"CALGARY"]
["Men's",null,"Bernie Sutton",null,"Doug Carritt",null,"Stan Black",null,"Jan Andersen",null,"Wilf Appel"]
[]
["Ladies",null,"EDMONTON",null,"SOUTHERN*",null,"SOUTHERN",null,"SOUTHERN",null,"EDMONTON"]
["Team",null,"Ebba Anderson",null,"Isabelle Bergman",null,"Lyndell Brekko",null,"Anita Robinson",null,"Marlene Gill"]
[null,null,"Ann Blackford",null,"Lyndell Brekko",null,"Eleanor Dorigatti",null,"Linda Malcomson",null,"Traudi Hesp"]
[null,null,"Traudi Hesp",null,"Sandra Hunt",null,"Louise Plato",null,"Lyndell Brekko",null,"Del Gagnon"]
[null,null,"Gerry Umphrey",null,"Linda Malcomson",null,"Anita Robinson",null,"Sandra Hunt",null,"Erin O'Brien"]
[null,null,"Marlene Gill",null,"Anita Robinson",null,"Karlyn Spitzer",null,"Shar Williams",null,"Darien McConaghie"]
[null,null,"Diane Kaptey",null,"Dianne Violini",null,"Dianne Violini",null,"Nadine Kovacs",null,"Betty Jensen"]
[null,null,"Neils Jensen (Coach)",null,"Roy Cunningham (Coach)",null,"Steve Pedersen (Coach)",null,"Vic Collomb (Coach)",null,"Neils Jensen (Coach)"]
[]
["Men's",null,"EDMONTON",null,"EDMONTON *",null,"CALGARY *",null,"SOUTHERN",null,"SOUTHERN"]
["Team",null,"Ian Fraser",null,"Dwight Anderson",null,"Wilf Appel",null,"John Rempel",null,"Frank Fernetti"]
[null,null,"Bob Leenders",null,"Clare Lakeman",null,"Dave Lewis",null,"Darrell Lagler",null,"Ken King"]
[null,null,"Dan Meilke",null,"Bob Leenders",null,"Al Hong",null,"Brian Stonehouse",null,"Ken Kurtz"]
[null,null,"Mel Miller",null,"John Martel",null,"Gene Balone",null,"Les Dyke",null,"Jack Rumsey"]
[null,null,"Chris Runnalls",null,"Bill Murphy",null,"Larry Ellert",null,"Steve Pedersen",null,"Jack Smeed"]
[null,null,"Bernie Stotyn",null,"Al Noppers",null,"Don Sim",null,"Ken King",null,"Brian Stonehouse"]
[null,null,"Jan Leenders (Coach)",null,"Gene Gagnon (Coach)",null,"Tom Campbell (Coach)",null,"Bert Mezei (Coach)",null,"Vic Collomb (Coach)"]
[]
["Mixed",null,"SOUTHERN *",null,"EDMONTON",null,"CALGARY",null,"CALGARY",null,"SOUTHERN"]
["Team",null,"Ken Malcomson",null,"John Blyth",null,"Sharon Capewell",null,"Sharon Capewell",null,"Eleanor Dorigatti"]
[null,null,"Linda Malcomson",null,"Ebba Anderson",null,"Chris MacKinnon",null,"Lorraine Gervais",null,"Les Dyke"]
[null,null,"Steve Pedersen",null,"Rose Denman",null,"Faylene Valdes",null,"Eileen Ramsdale",null,"Dianne Violini"]
[null,null,"Jeanette Smeed",null,"George Hawkins",null,"Ron Sansom",null,"Stan Black",null,"Lyndell Brekko"]
[null,null,"Ken King",null,"Barry Desnoyers",null,"Tom Campbell",null,"Bob Miller",null,"Darwin Romanchuk"]
[null,null,"Dianne Violini",null,"Lynn Howell",null,"Ray Miller",null,"Al Scheer",null,"Harry Topliffe"]
[null,null,"Roy Cunningham",null,"Joan Robertson",null,"Bob Miller",null,"Aldo Serblin",null,"Roy Cunningham"]
[null,null,"Jack Smeed (Coach)",null,"Jan Leenders(Coach)",null,"Don Sim (Coach)",null,"Don Sim (Coach)",null,"Jack Smeed (Coach)"]
[]
["Event",null,{"$f":"+K4+1","v":1979},null,{"$f":"+C40+1","v":1980},null,{"$f":"+E40+1","v":1981},null,{"$f":"+G40+1","v":1982},null,{"$f":"+I40+1","v":1983}]
[]
[null,null,"EDMONTON",null,"SOUTHERN",null,"CENTRAL",null,"CALGARY *",null,"CENTRAL"]
["Singles",null,"Gerry Anderson",null,"Dianne Violini",null,"Diane Morrical",null,"Charleen Hodgins",null,"Bev Meyer"]
["Ladies"]
[null,null,"CENTRAL",null,"NORTHERN",null,"SOUTHERN *",null,"NORTHERN",null,"CALGARY"]
["Singles",null,"Doug Morrical",null,"Larry Scheer",null,"Darrell Lagler",null,"Ray Sylvester",null,"Terry Farquharson"]
["Men's"]
[null,null,"EDMONTON",null,"EDMONTON",null,"SOUTHERN",null,"CALGARY *",null,"SOUTHERN"]
["Ladies",null,"Gerry Anderson",null,"Gerry Anderson",null,"Jeanette Smeed",null,"Bonnie Clark",null,"Dianne Violini"]
["Team",null,"Pearl Hindle",null,"Darien McConaghie",null,"Lyndell Brekko",null,"Debbie Kingsmith",null,"Lyndell Brekko"]
[null,null,"Freida Schadl",null,"Barb Masse",null,"Alice Kolibas",null,"Charleen Hodgins",null,"Gayle Stuber"]
[null,null,"Diana Long",null,"Jeanette MacDonald",null,"Dianne Gehring",null,"Fran Clarke",null,"Jeanette Smeed"]
[null,null,"Erin O'Brien",null,"Lynn Steinraths",null,"Anita Robinson",null,"Nancy Harris",null,"Sandy Ferguson"]
[null,null,"Traudi Hesp",null,"Pearl Hindle",null,"Dianne Violini",null,"Tracy Findlater",null,"Shirley Burris"]
[null,null,"Gene Gagnon (Coach)",null,"Gene Gagnon (Coach)",null,"Gus Plato (Coach)",null,"Shar Williams (Coach)",null,"Mike Violini (Coach)"]
[]
[null,null,"SOUTHERN",null,"EDMONTON",null,"SOUTHERN",null,"SOUTHERN",null,"CALGARY"]
["Men's",null,"Darrell Lagler",null,"Clare Lakeman",null,"Darrell Lagler",null,"Ed Burwash",null,"Don Sim"]
["Team",null,"Brian Stonehouse",null,"Marty Bush",null,"Brian Stonehouse",null,"Frank Fernetti",null,"Terry Farquharson"]
[null,null,"Ken Weitz",null,"Bob Power",null,"Ed Burwash",null,"Ken Kurtz",null,"Bob Miller"]
[null,null,"Ken Kurtz",null,"Dwight Anderson",null,"Roy Cunningham",null,"Roy Cunningham",null,"Brian Rossetti"]
[null,null,"Harry Topliffe",null,"Rod Jensen",null,"Ken Malcomson",null,"Duane Plato",null,"Bob Bakos"]
[null,null,"Jack Smeed",null,"Mike Masse",null,"Jack Smeed",null,"Owen Gottselig",null,"Ken Norris"]
[null,null,"Jack Smeed (Coach)",null,"John Martel (Coach)",null,"Don Gill (Coach)",null,"Jack Smeed (Coach)",null,"Doug Goodman (Coach)"]
[]
[null,null,"EDMONTON",null,"CALGARY",null,"SOUTHERN",null,"CALGARY",null,"CALGARY"]
["Mixed",null,"John Martel",null,"Al Hong",null,"Ken Kurtz",null,"Dennis Westover",null,"Colin Keir"]
["Team",null,"Darien McConaghie",null,"Marie Davidson",null,"Harry Topliffe",null,"Arlene Beerbaum",null,"Tom Anderson"]
[null,null,"Dennis Klien",null,"Larry Ellert",null,"Bob Costanzo",null,"Barb Douglas",null,"Greg Gigliuk"]
[null,null,"Audrey Sakowsky",null,"Tracy Koftinoff",null,"Frank Fernetti",null,"Greg Gigliuk",null,"Barry Martin"]
[null,null,"Tom Alford",null,"Doug Goodman",null,"Janet Froehlich",null,"Bob Miller",null,"Fran Jones"]
[null,null,"Sherry Lesyk",null,"Dennis Westover",null,"Alvina Cunningham",null,"Tom Anderson",null,"Nancy Harris"]
[null,null,"Lloyd Cox",null,"Hubert Kenda",null,"Joanne Dewalt",null,"Dave Lewis",null,"Helen Barry"]
[null,null,"Stan Hesp (Coach)",null,"John Mathews (Coach)",null,"Jerry Mezei (Coach)",null,"Doug Goodman (Coach)",null,"Shar Williams (Coach)"]
[]
["Event",null,{"$f":"+K40+1","v":1984},null,{"$f":"+C76+1","v":1985},null,{"$f":"+E76+1","v":1986},null,{"$f":"+G76+1","v":1987},null,{"$f":"+I76+1","v":1988}]
[]
[null,null,"CENTRAL *",null,"CENTRAL",null,"SOUTHERN",null,"CENTRAL",null,"SOUTHERN"]
["Singles",null,"Bev Meyer",null,"Bev Meyer",null,"Dianne Violini",null,"Bev Meyer",null,"Dianne Violini"]
["Ladies"]
[null,null,"CALGARY",null,"SOUTHERN",null,"EDMONTON",null,"SOUTHERN",null,"CENTRAL"]
["Singles",null,"Ken Norris",null,"Roy Cunningham",null,"Dwight Anderson",null,"Ken Malcomson",null,"Mark Jackson"]
["Men's"]
[null,null,"CENTRAL",null,"CENTRAL",null,"EDMONTON",null,"NORTHERN",null,"EDMONTON"]
["Ladies",null,"Bev Meyer",null,"Bev Meyer",null,"Alvina Brettnell",null,"Marie Blake",null,"Traudi Hesp"]
["Team",null,"Gale Morrical",null,"Germaine Knipple",null,"Jacque Flach",null,"Anita O'Callaghan",null,"Lainie Mailer"]
[null,null,"Germaine Knipple",null,"Phyl Ward",null,"Sherry Lesyk",null,"Ivy Murray",null,"Alvina Brettnell"]
[null,null,"Billie Wood",null,"Billie Wood",null,"Traudi Hesp",null,"Gloria Unger",null,"Sharon Tarasoff"]
[null,null,"Geraldine Ford",null,"Carol Bradford",null,"Gerry Anderson",null,"Carol LaBoucane",null,"Donna Dolinsky"]
[null,null,"Sandy Barnes",null,"Nancy Gervais",null,"Janice Jensen",null,"Betty Read",null,"Brenda Blake"]
[null,null,"Louise Holmes (Coach)",null,"Louise Holmes (Coach)",null,"Don Gill (Coach)",null,"Bill Francis (Coach)",null,"Brian Goodhope (Coach)"]
[]
[null,null,"CENTRAL",null,"SOUTHERN *",null,"EDMONTON",null,"SOUTHERN",null,"EDMONTON"]
["Men's",null,"Greg Gigliuk",null,"Bill Todd",null,"Bob Leenders",null,"Ken Malcomson",null,"Roy Kania"]
["Team",null,"Lawrence Fobert",null,"Ken Kurtz",null,"Bruce Morter",null,"Brent Chambers",null,"Bruce Morter"]
[null,null,"Jan Andersen",null,"Roy Cunningham",null,"Dwight Anderson",null,"John Rempel",null,"Bill Froehler"]
[null,null,"Dave Nelson",null,"Ryan Bader",null,"Stan Hesp",null,"Tom Baker",null,"Gerard Parker"]
[null,null,"Bill Tronnes",null,"Tom Stevenson",null,"Gord McCutcheon",null,"Murray Westling",null,"Dale Lorenz"]
[null,null,"Gary Tunbridge",null,"Harry Topliffe",null,"Don MacDonald",null,"Ken Kurtz",null,"Stan Hesp"]
[null,null,"Tom Alford (Coach)",null,"Jerry Mezei (Coach)",null,"George Lund (Coach)",null,"Jack Smeed (Coach)",null,"Dwight Anderson (Coach)"]
[]
[null,null,"CALGARY",null,"CALGARY *",null,"EDMONTON",null,"SOUTHERN",null,"CENTRAL *"]
["Mixed",null,"Tammy Richardson",null,"Lorraine Gervais",null,"Roy Kania",null,"Mike DiPietro",null,"Lynn Miller"]
["Team",null,"Barb Douglas",null,"Lynn Holt",null,"Pearl Hindle",null,"Robin Stanton",null,"Marg Sloan"]
[null,null,"Bea MacPhail",null,"Mearle Lepla",null,"Brian Goodhope",null,"Durwin Noble",null,"Geraldine Ford"]
[null,null,"Al Scheer",null,"Barry Ellert",null,"Janice Tipler",null,"Dan Rattai",null,"Greg Gigliuk"]
[null,null,"Brian McGillivry",null,"Reggie Zwicker",null,"Lynn Howell",null,"Lori Kelly",null,"Fred Milner"]
[null,null,"Bill Schwalm",null,"Dave Sanderson",null,"Diane Vickery",null,"Masa Goshinmon",null,"Rollie Gervais"]
[null,null,"Joe Wood",null,"Bob Miller",null,"Robin Powell",null,"Pam Stonehouse",null,"Jan Andersen"]
[null,null,"Fran Clarke (Coach)",null,"Don Sim (Coach)",null,"Ian Fraser (Coach)",null,"Brian Stonehouse (Coach)",null,"Tom Alford (Coach)"]
[]
["Event",null,{"$f":"+K76+1","v":1989},null,{"$f":"+C112+1","v":1990},null,{"$f":"+E112+1","v":1991},null,{"$f":"+G112+1","v":1992},null,{"$f":"+I112+1","v":1993}]
[]
[null,null,"CENTRAL",null,"NORTHERN",null,"NORTHERN",null,"CALGARY",null,"EDMONTON"]
["Singles",null,"Bev Gigliuk",null,"Adele Burynuik",null,"Sharlene Waldorf",null,"Susan Anderson",null,"Adele Burynuik"]
["Ladies"]
[null,null,"SOUTHERN",null," EDMONTON",null,"CENTRAL",null,"NORTHERN",null,"CENTRAL"]
["Singles",null,"Mike DiPietro",null,"Lynn Howell",null,"Greg Gigliuk",null,"Greg Dobbie",null,"Lawrence Fobert"]
["Men's"]
[null,null,"SOUTHERN",null,"CENTRAL",null,"NORTHERN",null,"SOUTHERN",null,"SOUTHERN"]
["Ladies",null,"Dianne Violini",null,"Rhonda Barber",null,"Rheva Dreger",null,"Dianne Violini",null,"Dianne Violini"]
["Team",null,"Lori Kelly",null,"Nancy Gervais",null,"Milly McGregor",null,"Michele Cavanaugh",null,"Penny Noble"]
[null,null,"Penny Noble",null,"Andrea Ratcliffe",null,"Sharlene Waldorf",null,"Lori Kelly",null,"Lori Kelly"]
[null,null,"Pam Stonehouse",null,"Lynn Miller",null,"Carol LaBoucane",null,"Fran Kelly",null,"Jeanette Smeed"]
[null,null,"Kathy Robertson",null,"Judy Grinde",null,"Ivy Murray",null,"Penny Noble",null,"Hilary Davies"]
[null,null,"Marg Lovin",null,"Leanne Eriksen",null,"Clara Loyer",null,"Thora Swan",null,"Michele Cavanaugh"]
[null,null,"Mike Violini (Coach)",null,"Louise Holmes (Coach)",null,"Gary Abrams (Coach)",null,"Mike Violini (Coach)",null,"Mike Violini (Coach)"]
[]
[null,null,"CALGARY",null,"EDMONTON *",null,"CENTRAL",null,"CENTRAL *",null,"CENTRAL *"]
["Men's",null,"Don Sim",null,"Brad Anderson",null,"Mark Jackson",null,"Doug Morrical",null,"Jan Andersen"]
["Team",null,"Terry Farquharson",null,"Lynn Howell",null,"Greg Gigliuk",null,"Gene Ziebarth",null,"Lawrence Fobert"]
[null,null,"Roy Cunningham",null,"Roy Kania",null,"Stan Skoye",null,"Tom Alford",null,"Mike Tweedy"]
[null,null,"Colin Keir",null,"Bruce Morter",null,"Lawrence Fobert",null,"Lawrence Fobert",null,"Mike DiPietro"]
[null,null,"Doug Goodman",null,"Gerard Parker",null,"Gene Ziebarth",null,"Jan Andersen",null,"Greg Gigliuk"]
[null,null,"Brian Rossetti",null,"Stan Hesp",null,"Tom Stevenson",null,"Harry George",null,"Rollie Gervais"]
[null,null,"Wilf Kuss (Coach)",null,"Dwight Anderson (Coach)",null,"Tom Alford (Coach)",null,"Ed Gabrielson (Coach)",null,"Ed Gabrielson (Coach)"]
[]
[null,null,"CENTRAL",null,"CENTRAL",null,"NORTHERN",null,"SOUTHERN *",null,"EDMONTON"]
["Mixed",null,"Nancy Gervais",null,"Kathy Gabrielson",null,"Kathy Dyer",null,"Dan Rattai",null,"Brian Goodhope"]
["Team",null,"Lis Jorgensen",null,"Sandra Cockburn",null,"Marilyn Gray",null,"Duane Plato",null,"Doug Key"]
[null,null,"Dianne Moore",null,"Marlene Gill",null,"Diane Nelson",null,"Brian Stonehouse",null,"Dwight Anderson"]
[null,null,"Stan Skoye",null,"Tom Stevenson",null,"Wayne Adams",null,"Harvey Martin",null,"John Martel"]
[null,null,"Tom Alford",null,"Jan Andersen",null,"Jerry Shepherd",null,"Trudy Kurtz",null,"Janice Jensen"]
[null,null,"Yves Vezina",null,"Tony Steere",null,"Brian Murray",null,"Shelly Mayer",null,"Tracy Boytel"]
[null,null,"Lonnie Staples",null,"Bernie Fournier",null,"Ryan Gardner",null,"Lyndell Brekko",null,"Sharon Tarasoff"]
[null,null,"Bob Guthrie (Coach)",null,"Don Gill (Coach)",null,"Jim Hohne (Coach)",null,"Frank Fernetti (Coach)",null,"Danny Clapp (Coach)"]
[]
["Event",null,{"$f":"+K112+1","v":1994},null,{"$f":"+C148+1","v":1995},null,{"$f":"+E148+1","v":1996},null,{"$f":"+G148+1","v":1997},null,{"$f":"+I148+1","v":1998}]
[]
[null,null,"CENTRAL",null,"EDMONTON",null,"CALGARY *",null,"CALGARY *",null,"SOUTHERN *"]
["Singles",null,"Bev Gigliuk",null,"Janice Lacoursiere",null,"Jennifer Marshall",null,"Jennifer Marshall",null,"Penny Noble"]
["Ladies"]
[null,null,"EDMONTON",null,"CENTRAL",null,"EDMONTON",null,"CALGARY",null,"EDMONTON"]
["Singles",null,"Russ Baldwin",null,"Doug Morrical",null,"Steve Cummings",null,"Scott Laing",null,"Bruce Morter"]
["Men's"]
[null,null,"EDMONTON *",null,"SOUTHERN",null,"CALGARY *",null,"CENTRAL",null,"CALGARY"]
["Ladies",null,"Lainie Mailer",null,"Cindy Christmann",null,"Jennifer Marshall",null,"Rhonda Barber",null,"Jennifer Marshall"]
["Team",null,"Tracy Boytel",null,"Penny Noble",null,"Anne Norris",null,"Roxane Doyle",null,"Rachel McDonald"]
[null,null,"Adele Burynuik",null,"Jeanette Smeed",null,"Jeannette Beaulieu",null,"Nancy Gervais",null,"Susan Anderson"]
[null,null,"Donna Heidinger",null,"Fran Kelly",null,"Judy Kanigan",null,"Bev Gigliuk",null,"Pamela Marshall"]
[null,null,"Pam Ibach",null,"Michele Cavanaugh",null,"Annette Bruneau",null,"Jeri-Lee Miller",null,"Anne Norris"]
[null,null,"Lill Broda",null,"Dianne Violini",null,"Rachel McDonald",null,"Lynn Miller",null,"Debbie Boswell"]
[null,null,"Tom Boytel (Coach)",null,"Pat Elliott (Coach)",null,"Don Marshall (Coach)",null,"Lawrence Fobert (Coach)",null,"Don Marshall (Coach)"]
[]
[null,null,"EDMONTON",null,"CALGARY",null,"EDMONTON",null,"CALGARY",null,"EDMONTON *"]
["Men's",null,"Lynn Howell",null,"Brian Hill",null,"Steve Cummings",null,"Roy Cunningham",null,"Lynn Howell"]
["Team",null,"Barrett Gamble",null,"Doug Goodman",null,"Bruce Morter",null,"Colin Keir",null,"Mike Tweedy"]
[null,null,"Russ Baldwin",null,"Kevin Holdsworth",null,"Barrett Gamble",null,"Scott Laing",null,"Bruce Morter"]
[null,null,"Clare Lakeman",null,"Brian Rossetti",null,"Richard Salyzyn",null,"Brian Rossetti",null,"Brad Anderson"]
[null,null,"Bob Bruneau",null,"Colin Keir",null,"Kevin Kohut",null,"Robert Shanas",null,"Tom Stevenson"]
[null,null,"Tom Stevenson",null,"Ken Norris",null,"Brian Goodhope",null,"Joe Wood",null,"Len Madarash"]
[null,null,"Ian Fraser (Coach)",null,"Bob Edmonds (Coach)",null,"Lynn Howell (Coach)",null,"Bob Edmonds (Coach)",null,"Don MacIver (Coach)"]
[]
[null,null,"EDMONTON",null,"EDMONTON",null,"EDMONTON",null,"SOUTHERN",null,"CALGARY"]
["Mixed",null,"Bruce Morter",null,"Michelle Hoyle",null,"Leanne Eriksen",null,"Teri Holt",null,"Shannon Scott"]
["Team",null,"Ken Klassen",null,"Tracy Boytel",null,"Brad Anderson",null,"Debbie Poirier",null,"Judy Kanigan"]
[null,null,"Dwight Anderson",null,"Adele Burynuik",null,"Sandra Helmer",null,"Bobbi Verpy",null,"Linda Raymond"]
[null,null,"John Martel",null,"Barrett Gamble",null,"Gerard Parker",null,"Justin Bander",null,"Bob Miller"]
[null,null,"Marcy Clapp",null,"Randy Clarke",null,"Lisa Hargrove",null,"Doug Campbell",null,"Scott Laing"]
[null,null,"Carol Swartz",null,"Lynn Howell",null,"John Martel",null,"Durwin Noble",null,"Don Sim"]
[null,null,"Janice Jensen",null,"Danny Clapp",null,"Len Madarash",null,"Dan Rattai",null,"Colin Keir"]
[null,null,"Danny Clapp (Coach)",null,"Tom Boytel (Coach)",null,"Dwight Anderson (Coach)",null,"Jerry Kind (Coach)",null,"Rick Wagner (Coach)"]
[]
["Event",null,{"$f":"+K148+1","v":1999},null,{"$f":"+C184+1","v":2000},null,{"$f":"+E184+1","v":2001},null,{"$f":"+G184+1","v":2002},null,{"$f":"+I184+1","v":2003}]
[]
[null,null,"CALGARY",null,"CALGARY",null,"SOUTHERN",null,"SOUTHERN",null,"2003 - EDMONTON"]
["Singles",null,"Jennifer Marshall",null,"Jennifer Marshall",null,"Dianne Violini",null,"Penny Noble",null,"Tracy Smith  "]
["Ladies"]
[null,null,"EDMONTON *",null,"CENTRAL *",null,"NORTHERN",null,"NORTHERN",null,"2003 - CALGARY"]
["Singles",null,"Bruce Morter",null,"Gene Ziebarth",null,"Brian Murray",null,"Ian Dobbie",null,"Tom Stevenson  "]
["Men's"]
[null,null,"EDMONTON",null,"CALGARY",null,"CALGARY",null,"CALGARY",null,"2003 - SOUTHERN"]
["Ladies",null,"Cathie Calarco",null,"Jennifer Marshall",null,"Jennifer Marshall",null,"Jennifer Marshall",null,"Dianne Violini  "]
["Team",null,"Sandra Helmer",null,"Stacey Sanderson",null,"Tracy Ranta",null,"Jennifer Burgess",null,"Michele Cavanaugh  "]
[null,null,"Janice Lacoursiere",null,"Brenda Closen",null,"Jennifer Burgess",null,"Stacey Sanderson",null,"Kara Kurtz  "]
[null,null,"Michelle Kohut-Whyte",null,"Pamela Marshall",null,"Brenda Smud",null,"Melinda Shilton",null,"Penny Noble "]
[null,null,"Tracy Smith",null,"Debbie Boswell",null,"Susan Anderson",null,"Susan Anderson",null,"Bobbi Sisko "]
[null,null,"Carol Swartz",null,"Rachel McDonald",null,"Judy Kanigan",null,"Judy Stratton",null,"Colleen Gleed "]
[null,null,"Tom Boytel (Coach)",null,"Don Marshall (Coach)",null,"Linda Raymond (Coach)",null,"Debbie Boswell (Coach)",null,"Jack Smeed (Coach)"]
[]
[null,null,"CALGARY",null,"EDMONTON *",null,"CENTRAL *",null,"SOUTHERN",null,"2003 - EDMONTON *"]
["Men's",null,"Colin Keir",null,"Tom Stevenson",null,"Gene Ziebarth",null,"Ken Malcomson",null,"Mark Jackson"]
["Team",null,"Danny Gomboc",null,"Mark Jackson",null,"Vince Chartier",null,"Kurtis Deering",null,"Jim Norkus"]
[null,null,"Len Pharoah",null,"Gord Mattern",null,"Lawrence Fobert",null,"Dan Rattai",null,"Mark Johnstone"]
[null,null,"Harvie Pocza",null,"Bruce Morter",null,"Gary Baird",null,"Jim Smeed",null,"Cassey Campbell"]
[null,null,"Dave Alexander",null,"Jim Norkus",null,"Brad Sinclair",null,"Duane Plato",null,"Sean Smith"]
[null,null,"Brian Rossetti",null,"Kevin Johnson",null,"Bob Guthrie",null,"Derek Lewicki",null,"Darrell Bradley"]
[null,null,"Shelley Struthers (Coach)",null,"Don MacIver (Coach)",null,"Eric Andersen (Coach)",null,"Fred Anderson (Coach)",null,"Don MacIver (Coach)"]
[]
[null,null,"CALGARY",null,"CALGARY *",null,"CALGARY",null,"CALGARY *",null,"2003 - EDMONTON *"]
["Mixed",null,"Annette Bruneau",null,"Greg Koch",null,"Stacey Sanderson",null,"Rachel McDonald",null,"Treena Neufeld "]
["Team",null,"Pamela Marshall",null,"Doug Goodman",null,"Annette Bruneau",null,"Annette Bruneau",null,"Sandra Helmer "]
[null,null,"Sandra Murray",null,"Len Pharoah",null,"Debbie BoswelI",null,"Shelley Slator",null,"Cathie Pearson "]
[null,null,"Roy Cunningham",null,"Tracy Ranta",null,"Derek Home",null,"Rich Weber",null,"Curtis Kaplan "]
[null,null,"Terry Farquharson",null,"Jeannette Doyle",null,"Greg Koch",null,"Tom Stevenson",null,"Tony Steere "]
[null,null,"Rick Wagner",null,"Gail Sweeny",null,"Terry Smithson",null,"Robert Wolfson",null,"Bruce Morter "]
[null,null,"Bob Miller",null,"Wilf Kuss",null,"Rich Weber",null,"TJ Carriere",null,"Lynn Howell (Coach)"]
[null,null,"Doug Goodman (Coach)",null,"Fran Clarke (Coach)",null,"Rick Nowosad (Coach)",null,"Brian Rossetti (Coach)"]
[]
["Event",null,{"$f":"+K184+1","v":2004},null,{"$f":"+C220+1","v":2005},null,{"$f":"+E220+1","v":2006},null,{"$f":"+G220+1","v":2007},null,{"$f":"+I220+1","v":2008}]
[]
[null,null,"SOUTHERN",null,"CALGARY",null,"CALGARY",null,"SOUTHERN",null,"SOUTHERN"]
["Singles",null,"Bobbi Sisko",null,"Bev Yaworenko",null,"Bev Yaworenko",null,"Bobbi Sisko",null,"Dianne Violini"]
["Ladies"]
[null,null,"NORTHERN",null,"CALGARY",null,"CALGARY",null,"CALGARY *",null,"CENTRAL"]
["Singles",null,"Ian Dobbie",null,"Tom Stevenson  ",null,"Rick Heinrich",null,"Adam Weber",null,"Lawrence Fobert"]
["Men's"]
[null,null,"EDMONTON",null,"CALGARY",null,"SOUTHERN",null,"EDMONTON",null,"CALGARY"]
["Ladies",null,"Heather Wellman",null,"Stacey Sanderson",null,"Penny Hepfner",null,"Heidi Andersen",null,"Tracy Smith"]
["Team",null,"Michelle Hoyle",null,"Shantelle Szuch",null,"Dianne Violini",null,"Alison Roberts",null,"Brittney Johnson"]
[null,null,"Larae Hurst",null,"Annette Bruneau",null,"Michele Cavanaugh",null,"Michelle Hoyle",null,"Heather Owchar"]
[null,null,"Tracy Smith",null,"Susan Anderson",null,"Bobbi Sisko ",null,"Melanie O'Brien",null,"Jeri Lee Miller"]
[null,null,"Heidi Andersen",null,"Brenda McCannel",null,"Torrie Hinzman",null,"Janice Lacoursiere",null,"Bev Magnus"]
[null,null,"Michelle Gairdner",null,"Bev Yaworenko",null,"Susan Gartry",null,"Sheena Owens",null,"Judy Stratton"]
[null,null,"Tom Boytel (Coach)",null,"Debbie Boswell (Coach)",null,"Ken Kurtz (Coach)",null,"Barett Gamble (Coach)",null,"Geoff Wilson (Coach)"]
[]
[null,null,"EDMONTON",null,"CENTRAL *",null,"CENTRAL",null,"CALGARY",null,"EDMONTON *"]
["Men's",null,"Mark Johnstone",null,"Brad Aasen",null,"Lawrence Fobert",null,"Rich Weber",null,"Mark Johnstone"]
["Team",null,"Steve Stasiuk",null,"Gary Baird",null,"Geno Ziebarth",null,"Adam Weber",null,"Sean Heller"]
[null,null,"Sean Smith",null,"Vince Chartier",null,"Shelby Chrest",null,"Rick Heinrich",null,"Brett Wren"]
[null,null,"Darrell Bradley",null,"Lawrence Fobert",null,"Blair Pizzey",null,"Len Pharoah",null,"Perry Gillam"]
[null,null,"Mark Jackson",null,"Blair Pizzey",null,"Greg Gigliuk",null,"Harvie Pocza",null,"Bruce Morter"]
[null,null,"Marty Bush",null,"Greg Gigliuk",null,"Brad Aasen",null,"TJ Carriere",null,"Matt Schultz"]
[null,null,"Lynn Howell (Coach)",null,"Mike Tweedy (Coach)",null,"Bob Guthrie (Coach)",null,"Linda Raymond (Coach)",null,"Lynn Howell (Coach)"]
[]
[null,null,"CENTRAL",null,"EDMONTON",null,"CALGARY",null,"EDMONTON",null,"CALGARY"]
["Mixed",null,"Mike Tweedy",null,"Barry Urquhart",null,"Jennifer Ladan",null,"Tina Arychuk",null,"Jennifer Ladan"]
["Team",null,"Vince Chartier",null,"Mike Lacoursiere",null,"Judy Stratton",null,"Annette Gamborski",null,"Brenda McCannel"]
[null,null,"Rollie Gervais",null,"Greg Amundson",null,"Melinda Shilton",null,"Melissa Werrell",null,"Alyssa Madsen"]
[null,null,"Tricia Mantai",null,"Heather Wellman",null,"TJ Carriere",null,"Mike Lacoursiere",null,"TJ Carriere"]
[null,null,"Andrea Leavitt",null,"Treena Neufeld",null,"Robert Wolfson",null,"Chance Anderson",null,"Al Kosciuk"]
[null,null,"Rhonda Barber",null,"Christine Linnen",null,"Adam Weber",null,"Perry Gillam",null,"Adam Weber"]
[null,null,"Dale Holfeld (Coach)",null,"Dwight Anderson (Coach)",null,"Brian Rossetti (Coach)",null,"Cisco Beyersbergen (Coach)",null,"Linda Raymond (Coach)"]
[]
["Event",null,{"$f":"+K220+1","v":2009},null,{"$f":"+C255+1","v":2010},null,{"$f":"+E255+1","v":2011},null,{"$f":"+G255+1","v":2012},null,{"$f":"+I255+1","v":2013}]
[]
[null,null,"EDMONTON",null,"SOUTHERN *",null,"NORTHERN",null,"SOUTHERN",null,"SOUTHERN"]
["Singles",null,"Michelle Hoyle",null,"Dianne Violini",null,"Bonnie McDonald",null,"Tara Seitz",null,"Dianne Violini"]
["Ladies"]
[null,null,"CENTRAL",null,"EDMONTON",null,"CALGARY",null,"CALGARY",null,"NORTHERN *"]
["Singles",null,"Gene Ziebarth",null,"Mark Johnstone",null,"Adam Weber",null,"Derek Home",null,"Victor Fobert"]
["Men's"]
[null,null,"CALGARY",null,"CALGARY",null,"CALGARY",null,"EDMONTON",null,"EDMONTON"]
["Ladies",null,"Heather Owchar",null,"Tracy Smith",null,"Beverley Magnus",null,"Annette Campbell",null,"Michelle Hoyle"]
["Team",null,"Tracy Smith",null,"Tracey Holdsworth",null,"Jennifer Ladan",null,"Halea Desutter",null,"Heidi Mapstone"]
[null,null,"Judy Stratton",null,"Brenda McCannel",null,"Tracy Smith",null,"Jennifer Baker",null,"Halea DeSutter"]
[null,null,"Pamela Wilson",null,"Stacey Sanderson",null,"Annette Bruneau",null,"Heidi Mapstone",null,"Jennifer Baker"]
[null,null,"Beverley Magnus",null,"Jeri Lee Miller",null,"Sheena Owens",null,"Melissa Werrell",null,"Caity Shearer"]
[null,null,"Brittney Johnson",null,"Melynda Bruneau",null,"Stacey Sanderson",null,"Christine Wren",null,"Annette Campbell"]
[null,null,"Geoff Wilson (Coach)",null,"Geoff Wilson (Coach)",null,"Brenda McCannel (Coach",null,"Gerry Anderson (Coach)",null,"Gerry Anderson (Coach)"]
[]
[null,null,"SOUTHERN",null,"EDMONTON *",null,"CALGARY *",null,"EDMONTON",null,"EDMONTON"]
["Men's",null,"Rob Price",null,"Tim Wiseman",null,"Adam Weber",null,"Mark Johnstone",null,"Brett Mapstone"]
["Team",null,"Kurtis Deering",null,"Mark Johnstone",null,"TJ Carriere",null,"Mike Lacoursiere",null,"Tim Wiseman"]
[null,null,"Duane Plato",null,"Bruce Morter",null,"Mark Miller",null,"Derek Gall",null,"Rimo Nestor"]
[null,null,"Darren Bridge",null,"Brett Mapstone",null,"Danny Gomboc",null,"Aaron Arndt",null,"Matt Schultz"]
[null,null,"Dan Rattai",null,"Sean Heller",null,"Eric Christensen",null,"Matt Schultz",null,"Sean Smith"]
[null,null,"Jim Vercammen",null,"Dexter Wiseman",null,"Stevan Loertscher",null,"Brett Wren",null,"Dexter Wiseman"]
[null,null,"Fred Anderson (Coach)",null,"Lynn Howell (Coach)",null,"Brian Rossetti (Coach)",null,"Lynn Howell (Coach)",null,"Cassey Campbell (Coach)"]
[]
[null,null,"SOUTHERN *",null,"CALGARY",null,"2011  - CALGARY",null,"EDMONTON",null,"EDMONTON"]
["Mixed",null,"Berenda Verpy",null,"Colin Christensen",null,"Rich Weber",null,"Brett Mapstone",null,"Amanda Bell"]
["Team",null,"Colleen Floberg",null,"Rick Heinrich",null,"Tom Stevenson",null,"Brad Aasen",null,"Kristin Heller"]
[null,null,"Terri Holt",null,"Kyle Greggain",null,"Derek Home",null,"Darrell Bradley",null,"Jennifer Baldwin"]
[null,null,"Brett Wren",null,"Jennifer Ladan",null,"Alyssa Madsen",null,"Caity Shearer",null,"Mark Graff"]
[null,null,"Mike Hirsche",null,"Pamela Wilson",null,"Brittney Johnson Olsen",null,"Michelle Hoyle",null,"Bruce Morter"]
[null,null,"Jim Smeed",null,"Beverley Magnus",null,"Linda Raymond",null,"Kristin Pitman",null,"Adam Kemp"]
[null,null,"Mike Fernetti (Coach)",null,"Linda Raymond (Coach)",null,"Debbie Boswell (Coach)",null,"Cassey Campbell (Coach)",null,"Lynn Howell (Coach)"]
[]
["Event",null,{"$f":"+K255+1","v":2014},null,{"$f":"+C290+1","v":2015},null,{"$f":"+E290+1","v":2016},null,{"$f":"+G290+1","v":2017},null,{"$f":"+I290+1","v":2018}]
[]
[null,null,"NORTHERN",null,"NORTHERN",null,"CALGARY",null,"NORTHERN",null,"CALGARY"]
["Singles",null,"Bonnie McDonald",null,"Bonnie McDonald",null,"Tracy Smith",null,"Bonnie McDonald",null,"Kelsy Wilton"]
["Ladies"]
[null,null,"CENTRAL",null,"CENTRAL",null,"EDMONTON",null,"SOUTHERN",null,"EDMONTON *"]
["Singles",null,"Gary Baird",null,"Greg Gigliuk",null,"Adam Weber",null,"Mike Christmann",null,"Adam Weber"]
["Men's"]
[null,null,"CALGARY *",null,"CALGARY",null,"EDMONTON",null,"EDMONTON",null,"CALGARY"]
["Ladies",null,"Jennifer Ladan",null,"Ann Marie Wilton",null,"Jennifer Baker",null,"Michelle Hoyle",null,"Jennifer Ladan"]
["Team",null,"Beverley Magnus",null,"Jessica Boundridge",null,"Heidi Mapstone",null,"Rose Gigliuk",null,"Stacey Sanderson"]
[null,null,"JeriLee Meadus",null,"Deena Ritchie",null,"Caity Shearer",null,"Michelle Heidinger",null,"Kelsy Wilton"]
[null,null,"Melynda Bruneau",null,"Kelsy Wilton",null,"Katie Harasymchuk",null,"Caity Hicks",null,"Ann-Marie Wilton"]
[null,null,"Sheena Owens",null,"Annette Bruneau",null,"Halea DeSutter",null,"Halea DeSutter",null,"Deena Ritchie"]
[null,null,"Ann-Marie Wilton",null,"Amber Ashton",null,"Shae-Lyn Lanovaz",null,"Julie Orobko",null,"Christine Pocza"]
[null,null,"Tom Stevenson (Coach)",null,"Harvie Pocza (Coach)",null,"Lori Thomas (Coach)",null,"Len Madarash (Coach)",null,"Harvie Pocza (Coach)"]
[]
[null,null,"CALGARY",null,"CENTRAL",null,"CENTRAL *",null,"EDMONTON *",null,"CENTRAL"]
["Men's",null,"Derek Home",null,"Gary Baird",null,"Gary Baird",null,"Adam Weber",null,"Gary Baird"]
["Team",null,"Kyle Greggain",null,"Victor Fobert",null,"Victor Fobert",null,"Freddie Tofflemire",null,"Karie Kreutz"]
[null,null,"Harvie Pocza",null,"Greg Gigliuk",null,"Karie Kreutz",null,"Adam Kemp",null,"Gene Ziebarth"]
[null,null,"Eric Christensen",null,"Gene Ziebarth",null,"Shelby Chrest",null,"Tim Wiseman",null,"Harvey Von Hollen"]
[null,null,"Mark Miller",null,"Brandon Cockburn",null,"Erik Kjos",null,"Sean Heller",null,"Justin Langrock "]
[null,null,"Rick Heinrich",null,"Erik Kjos",null,"Gene Ziebarth",null,"Evan Lacoursiere",null,"Shelby Chrest"]
[null,null,"Brenda McCannel (Coach)",null,"Lynn Howell (Coach)",null,"Greg Gigliuk (Coach)",null,"Mike Lacourisere (Coach)",null,"Michael Tweedy (Coach"]
[]
[null,null,"EDMONTON",null,"CALGARY",null,"EDMONTON *",null,"CALGARY",null,"CALGARY"]
["Mixed",null,"Jesse Bouchard",null,"Eric Christensen",null,"Chris Hyslop",null,"Susan Anderson",null,"Mark Polivchuk"]
["Team",null,"Adam Kemp",null,"Rick Heinrich",null,"Mike Lacoursiere",null,"Christine Pocza",null,"Parker Anderson"]
[null,null,"Brett Mapstone",null,"Bryan Hirst",null,"Matt Schultz",null,"Chirstie Wright",null,"Rick Heinrich"]
[null,null,"Shannon Roden",null,"Brittney Johnson",null,"Rose Gigliuk",null,"Harvie Pocza",null,"Maria Dalton"]
[null,null,"Annette Campbell",null,"Melynda Bruneau",null,"Melissa Werrell",null,"Mark Polivchuk",null,"Judy Stratton"]
[null,null,"Halea DeSutter",null,"Beverley Magnus",null,"Michelle Hoyle",null,"Rick Heinrich",null,"Beverley Magnus"]
[null,null,"Cassey Campbell (Coach)",null,"Tom Stevenson (Coach)",null,"Casey Campbell (Coach)",null,"Geoff Wilson (Coach)",null,"Brenda McCannel (Coach)"]
[]
["Event",null,{"$f":"+K290+1","v":2019},null,{"$f":"+C325+1","v":2020},null,{"$f":"+E325+1","v":2021},null,{"$f":"+G325+1","v":2022},null,{"$f":"+I325+1","v":2023}]
[]
[null,null,"EDMONTON",null,null,null,null,null,"EDMONTON",null," CENTRAL"]
["Singles",null,"Jennifer Baker",null,null,null,null,null,"Jenna Lamoureux",null,"Jenn Baker"]
["Ladies"]
[null,null,"EDMONTON *",null,null,null,null,null,"EDMONTON",null,"CALGARY *"]
["Singles",null,"Adam Weber",null,null,null,null,null,"Adam Weber",null,"Derek Home"]
["Men's"]
[null,null,"EDMONTON *",null,"Covid",null,"Covid",null,"EDMONTON",null,"EDMONTON *"]
["Ladies",null,"Heidi Mapstone",null,"Cancellation",null,"Cancellation",null,"Jenna Lamoureux",null,"Jenna Lamoureux"]
["Team",null,"Jennifer Baker",null,null,null,null,null,"Heidi Mapstone",null,"Katie Rayner"]
[null,null,"Michelle Heidinger",null,null,null,null,null,"Julie Orobko",null,"Julie Orobko"]
[null,null,"Katy Rayner",null,null,null,null,null,"Katie Rayner",null,"Heidi Mapstone"]
[null,null,"Annette Campbell",null,null,null,null,null,"Michelle Hoyle",null,"Jamie McAra"]
[null,null,"Rose Gigliuk",null,null,null,null,null,"Katelyn Ayoub",null,"Madison Jenkins"]
[null,null,"Desiree Tytgat (Coach)",null,null,null,null,null,"Len Madarash (Coach)",null,"Desiree Amos (Coach)"]
[]
[null,null,"EDMONTON *",null,null,null,null,null,"EDMONTON *",null,"EDMONTON"]
["Men's",null,"Tim Wiseman",null,null,null,null,null,"Tyler Tytgat",null,"Dexter Wiseman"]
["Team",null,"Adam Weber",null,null,null,null,null,"Adam Weber",null,"Tyler Tytgat"]
[null,null,"Dexter Wiseman",null,null,null,null,null,"Tim Wiseman",null,"Adam Weber"]
[null,null,"Bradly Tytgat",null,null,null,null,null,"Adam Kemp",null,"Adam Kemp"]
[null,null,"Michael Marciano",null,null,null,null,null,"Bradly Tytgat",null,"Jeremy Harasymchuk"]
[null,null,"Curtis Dunis",null,null,null,null,null,"Brett Wren",null,"Bradly Tytgat"]
[null,null,"Lynn Howell (Coach",null,null,null,null,null,"Lynn Howell (Coach)",null,"Lynn Howell (Coach)"]
[]
[null,null,"EDMONTON",null,null,null,null,null,"CALGARY",null,"EDMONTON"]
["Mixed",null,"Brett Wren",null,null,null,null,null,"Rob Wolfson",null,"Cody Steere"]
["Team",null,"Brett Mapstone",null,null,null,null,null,"Ian Howe",null,"Aaron Arndt"]
[null,null,"Adam Kempt",null,null,null,null,null,"Mike Herbert",null,"Brett Mapstone"]
[null,null,"Brittnee Lakusta",null,null,null,null,null,"Beverley Magnus",null,"Katelynn Ayoub"]
[null,null,"Julie Orobko",null,null,null,null,null,"Deena Ritchie",null,"Caity Hicks"]
[null,null,"Christine Wren",null,null,null,null,null,"Pamela Wilson",null,"Danielle DeBlois"]
[null,null,"Gerry Anderson (Coach)",null,null,null,null,null,"Geoff Wilson (Coach)",null,"Tim Wiseman (Coach)"]
[]
["Event",null,{"$f":"+K325+1","v":2024},null,{"$f":"+C360+1","v":2025},null,{"$f":"+E360+1","v":2026},null,{"$f":"+G360+1","v":2027},null,{"$f":"+I360+1","v":2028}]
[]
[null,null,"CALGARY"]
["Singles",null,{"$f":"+Singles!A55","v":"Damara Halvorson"}]
["Ladies"]
[null,null,"EDMONTON *"]
["Singles",null,{"$f":"+Singles!D55","v":"Tyler Tytgat"}]
["Men's"]
[null,null,"EDMONTON *"]
["Ladies",null,"Jenna Lamoureux"]
["Team",null,"Katelynn Ayoub"]
[null,null,"Julie Orobko"]
[null,null,"Jamie McAra"]
[null,null,"Heidi Mapstone"]
[null,null,"Natalya Langevin"]
[null,null,"Desiree Tytgat (Coach)"]
[]
[null,null,"NORTH"]
["Men's",null,"Thomas Tomkins"]
["Team",null,"Robert Tomkins"]
[null,null,"Dustin Thompson"]
[null,null,"Israel Bellavance"]
[null,null,"Sean Tomkins"]
[null,null,"Rylan Willier"]
[null,null,"Gerald Hafner (Coach)"]
[]
[null,null,"EDMONTON *"]
["Mixed",null,"Adam Weber"]
["Team",null,"Cody Jubinville"]
[null,null,"Adam Kemp"]
[null,null,"Katie Rayner"]
[null,null,"Keera Usman"]
[null,null,"Madison Jenkins"]
[null,null,"Chris Hyslop (Coach)"]

{"sheet":"Ladies","index":1,"n_rows":113,"n_cols":9,"rows_kept":113,"cut":false,"hidden":false,"merged":[]}
["PROVINCIAL LADIES TEAM CHAMPIONS"]
[]
["* Indicates the team won Nationals"]
[]
[1974,null,{"$f":"+A5+1","v":1975},null,{"$f":"+C5+1","v":1976},null,{"$f":"+E5+1","v":1977},null,{"$f":"+G5+1","v":1978}]
["EDMONTON",null,"CALGARY *",null,"CENTRAL",null,"CALGARY",null,"SOUTHERN"]
["Ebba Anderson",null,"Bonnie Clark",null,"Rhonda Barber",null,"Jennifer Marshall",null,"Penny Hepfner"]
["Ann Blackford",null,"Debbie Kingsmith",null,"Nancy Gervais",null,"Rachel McDonald",null,"Dianne Violini"]
["Traudi Hesp",null,"Charleen Hodgins",null,"Andrea Ratcliffe",null,"Susan Anderson",null,"Michele Cavanaugh"]
["Gerry Umphrey",null,"Fran Clarke",null,"Lynn Miller",null,"Pamela Marshall",null,"Bobbi Sisko "]
["Marlene Gill",null,"Nancy Harris",null,"Judy Grinde",null,"Anne Norris",null,"Torrie Hinzman"]
["Diane Kaptey",null,"Tracy Findlater",null,"Leanne Eriksen",null,"Debbie Boswell",null,"Susan Gartry"]
["Neils Jensen (Coach)",null,"Shar Williams (Coach)",null,"Louise Holmes (Coach)",null,"Don Marshall (Coach)",null,"Ken Kurtz (Coach)"]
[]
[{"$f":"+I5+1","v":1979},null,{"$f":"+A15+1","v":1980},null,{"$f":"+C15+1","v":1981},null,{"$f":"+E15+1","v":1982},null,{"$f":"+G15+1","v":1983}]
["EDMONTON",null,"EDMONTON",null,"SOUTHERN",null,"CALGARY *",null,"SOUTHERN"]
["Isabelle Bergman",null,"Dianne Violini",null,"Rheva Dreger",null,"Cathie Calarco",null,"Heidi Andersen"]
["Lyndell Brekko",null,"Lyndell Brekko",null,"Milly McGregor",null,"Sandra Helmer",null,"Alison Roberts"]
["Sandra Hunt",null,"Gayle Stuber",null,"Sharlene Waldorf",null,"Janice Lacoursiere",null,"Michelle Hoyle"]
["Linda Malcomson",null,"Jeanette Smeed",null,"Carol LaBoucane",null,"Michelle Kohut-Whyte",null,"Melanie O'Brien"]
["Anita Robinson",null,"Sandy Ferguson",null,"Ivy Murray",null,"Tracy Smith",null,"Janice Lacoursiere"]
["Dianne Violini",null,"Shirley Burris",null,"Clara Loyer",null,"Carol Swartz",null,"Sheena Owens"]
["Roy Cunningham (Coach)",null,"Mike Violini (Coach)",null,"Gary Abrams (Coach)",null,"Tom Boytel (Coach)",null,"Barett Gamble (Coach)"]
[]
[{"$f":"+I15+1","v":1984},null,{"$f":"+A25+1","v":1985},null,{"$f":"+C25+1","v":1986},null,{"$f":"+E25+1","v":1987},null,{"$f":"+G25+1","v":1988}]
["SOUTHERN",null,"CENTRAL",null,"SOUTHERN",null,"CALGARY",null,"CALGARY"]
["Lyndell Brekko",null,"Bev Meyer",null,"Dianne Violini",null,"Jennifer Marshall",null,"Tracy Smith"]
["Eleanor Dorigatti",null,"Gale Morrical",null,"Michele Cavanaugh",null,"Stacey Sanderson",null,"Brittney Johnson"]
["Louise Plato",null,"Germaine Knipple",null,"Lori Kelly",null,"Brenda Closen",null,"Heather Owchar"]
["Anita Robinson",null,"Billie Wood",null,"Fran Kelly",null,"Pamela Marshall",null,"Jeri Lee Miller"]
["Karlyn Spitzer",null,"Geraldine Ford",null,"Penny Noble",null,"Debbie Boswell",null,"Bev Magnus"]
["Dianne Violini",null,"Sandy Barnes",null,"Thora Swan",null,"Rachel McDonald",null,"Judy Stratton"]
["Steve Pedersen (Coach)",null,"Louise Holmes (Coach)",null,"Mike Violini (Coach)",null,"Don Marshall (Coach)",null,"Geoff Wilson (Coach)"]
[]
[{"$f":"+I25+1","v":1989},null,{"$f":"+A35+1","v":1990},null,{"$f":"+C35+1","v":1991},null,{"$f":"+E35+1","v":1992},null,{"$f":"+G35+1","v":1993}]
["SOUTHERN",null,"CENTRAL",null,"SOUTHERN",null,"CALGARY",null,"CALGARY"]
["Anita Robinson",null,"Bev Meyer",null,"Dianne Violini",null,"Jennifer Marshall",null,"Heather Owchar"]
["Linda Malcomson",null,"Germaine Knipple",null,"Penny Noble",null,"Tracy Ranta",null,"Tracy Smith"]
["Lyndell Brekko",null,"Phyl Ward",null,"Lori Kelly",null,"Jennifer Burgess",null,"Judy Stratton"]
["Sandra Hunt",null,"Billie Wood",null,"Jeanette Smeed",null,"Brenda Smud",null,"Pamela Wilson"]
["Shar Williams",null,"Carol Bradford",null,"Hilary Davies",null,"Susan Anderson",null,"Beverley Magnus"]
["Nadine Kovacs",null,"Nancy Gervais",null,"Michele Cavanaugh",null,"Judy Kanigan",null,"Brittney Johnson"]
["Vic Collomb (Coach)",null,"Louise Holmes (Coach)",null,"Mike Violini (Coach)",null,"Linda Raymond (Coach)",null,"Geoff Wilson (Coach)"]
[]
[{"$f":"+I35+1","v":1994},null,{"$f":"+A45+1","v":1995},null,{"$f":"+C45+1","v":1996},null,{"$f":"+E45+1","v":1997},null,{"$f":"+G45+1","v":1998}]
["EDMONTON",null,"EDMONTON",null,"EDMONTON *",null,"CALGARY",null,"CALGARY"]
["Marlene Gill",null,"Alvina Brettnell",null,"Lainie Mailer",null,"Jennifer Marshall",null,"Tracy Smith"]
["Traudi Hesp",null,"Jacque Flach",null,"Tracy Boytel",null,"Jennifer Burgess",null,"Tracey Holdsworth"]
["Del Gagnon",null,"Sherry Lesyk",null,"Adele Burynuik",null,"Stacey Sanderson",null,"Brenda McCannel"]
["Erin O'Brien",null,"Traudi Hesp",null,"Donna Heidinger",null,"Melinda Shilton",null,"Stacey Sanderson"]
["Darien McConaghie",null,"Gerry Anderson",null,"Pam Ibach",null,"Susan Anderson",null,"Jeri Lee Miller"]
["Betty Jensen",null,"Janice Jensen",null,"Lill Broda",null,"Judy Stratton",null,"Melynda Bruneau"]
["Neils Jensen (Coach)",null,"Don Gill (Coach)",null,"Tom Boytel (Coach)",null,"Debbie Boswell (Coach)",null,"Geoff Wilson (Coach)"]
[]
[{"$f":"+I45+1","v":1999},null,{"$f":"+A55+1","v":2000},null,{"$f":"+C55+1","v":2001},null,{"$f":"+E55+1","v":2002},null,{"$f":"+G55+1","v":2003}]
["EDMONTON",null,"NORTHERN",null,"SOUTHERN",null,"SOUTHERN",null,"CALGARY"]
["Gerry Anderson",null,"Marie Blake",null,"Cindy Christmann",null,"Dianne Violini  ",null,"Beverley Magnus"]
["Pearl Hindle",null,"Anita O'Callaghan",null,"Penny Noble",null,"Michele Cavanaugh  ",null,"Jennifer Ladan"]
["Freida Schadl",null,"Ivy Murray",null,"Jeanette Smeed",null,"Kara Kurtz  ",null,"Tracy Smith"]
["Diana Long",null,"Gloria Unger",null,"Fran Kelly",null,"Penny Noble ",null,"Annette Bruneau"]
["Erin O'Brien",null,"Carol LaBoucane",null,"Michele Cavanaugh",null,"Bobbi Sisko ",null,"Sheena Owens"]
["Traudi Hesp",null,"Betty Read",null,"Dianne Violini",null,"Colleen Gleed ",null,"Stacey Sanderson"]
["Gene Gagnon (Coach)",null,"Bill Francis (Coach)",null,"Pat Elliott (Coach)",null,"Jack Smeed (Coach)",null,"Brenda McCannel (Coach"]
[]
[{"$f":"+I55+1","v":2004},null,{"$f":"+A65+1","v":2005},null,{"$f":"+C65+1","v":2006},null,{"$f":"+E65+1","v":2007},null,{"$f":"+G65+1","v":2008}]
["EDMONTON",null,"EDMONTON",null,"CALGARY *",null,"EDMONTON",null,"EDMONTON"]
["Gerry Anderson",null,"Traudi Hesp",null,"Jennifer Marshall",null,"Heather Wellman",null,"Annette Campbell"]
["Darien McConaghie",null,"Lainie Mailer",null,"Anne Norris",null,"Michelle Hoyle",null,"Halea Desutter"]
["Barb Masse",null,"Alvina Brettnell",null,"Jeannette Beaulieu",null,"Larae Hurst",null,"Jennifer Baker"]
["Jeanette MacDonald",null,"Sharon Tarasoff",null,"Judy Kanigan",null,"Tracy Smith",null,"Heidi Mapstone"]
["Lynn Steinraths",null,"Donna Dolinsky",null,"Annette Bruneau",null,"Heidi Andersen",null,"Melissa Werrell"]
["Pearl Hindle",null,"Brenda Blake",null,"Rachel McDonald",null,"Michelle Gairdner",null,"Christine Wren"]
["Gene Gagnon (Coach)",null,"Brian Goodhope (Coach)",null,"Don Marshall (Coach)",null,"Tom Boytel (Coach)",null,"Gerry Anderson (Coach)"]
[]
[{"$f":"+I65+1","v":2009},null,{"$f":"+A75+1","v":2010},null,{"$f":"+C75+1","v":2011},null,{"$f":"+E75+1","v":2012},null,{"$f":"+G75+1","v":2013}]
["SOUTHERN",null,"SOUTHERN",null,"CENTRAL",null,"CALGARY",null,"EDMONTON"]
["Jeanette Smeed",null,"Dianne Violini",null,"Rhonda Barber",null,"Stacey Sanderson",null,"Michelle Hoyle"]
["Lyndell Brekko",null,"Lori Kelly",null,"Roxane Doyle",null,"Shantelle Szuch",null,"Heidi Mapstone"]
["Alice Kolibas",null,"Penny Noble",null,"Nancy Gervais",null,"Annette Bruneau",null,"Halea DeSutter"]
["Dianne Gehring",null,"Pam Stonehouse",null,"Bev Gigliuk",null,"Susan Anderson",null,"Jennifer Baker"]
["Anita Robinson",null,"Kathy Robertson",null,"Jeri-Lee Miller",null,"Brenda McCannel",null,"Caity Shearer"]
["Dianne Violini",null,"Marg Lovin",null,"Lynn Miller",null,"Bev Yaworenko",null,"Annette Campbell"]
["Gus Plato (Coach)",null,"Mike Violini (Coach)",null,"Lawrence Fobert (Coach)",null,"Debbie Boswell (Coach)",null,"Gerry Anderson (Coach)"]
[]
[{"$f":"+I75+1","v":2014},null,{"$f":"+A85+1","v":2015},null,{"$f":"+C85+1","v":2016},null,{"$f":"+E85+1","v":2017},null,{"$f":"+G85+1","v":2018}]
["CALGARY *",null,"CALGARY",null,"EDMONTON",null,"EDMONTON",null,"CALGARY"]
["Jennifer Ladan",null,"Ann Marie Wilton",null,"Jennifer Baker",null,"Michelle Hoyle",null,"Jennifer Ladan"]
["Beverley Magnus",null,"Jessica Boundridge",null,"Heidi Mapstone",null,"Rose Gigliuk",null,"Stacey Sanderson"]
["JeriLee Meadus",null,"Deena Ritchie",null,"Caity Shearer",null,"Michelle Heidinger",null,"Kelsy Wilton"]
["Melynda Bruneau",null,"Kelsy Wilton",null,"Katie Harasymchuk",null,"Caity Hicks",null,"Ann-Marie Wilton"]
["Sheena Owens",null,"Annette Bruneau",null,"Halea DeSutter",null,"Halea DeSutter",null,"Deena Ritchie"]
["Ann-Marie Wilton",null,"Amber Ashton",null,"Shae-Lyn Lanovaz",null,"Julie Orobko",null,"Christine Pocza"]
["Tom Stevenson (Coach)",null,"Harvie Pocza (Coach)",null,"Lori Thomas (Coach)",null,"Len Madarash (Coach)",null,"Harvie Pocza (Coach)"]
[]
[{"$f":"+I85+1","v":2019},null,{"$f":"+A95+1","v":2020},null,{"$f":"+C95+1","v":2021},null,{"$f":"+E95+1","v":2022},null,{"$f":"+G95+1","v":2023}]
["EDMONTON *",null,"",null,"",null,"EDMONTON",null,"EDMONTON *"]
["Heidi Mapstone",null,null,null,null,null,"Jenna Lamoureux",null,"Jenna Lamoureux"]
["Jennifer Baker",null,null,null,null,null,"Heidi Mapstone",null,"Katie Rayner"]
["Michelle Heidinger",null,"Covid",null,"Covid",null,"Julie Orobko",null,"Julie Orobko"]
["Katy Rayner",null,"Cancellation",null,"Cancellation",null,"Katie Rayner",null,"Heidi Mapstone"]
["Annette Campbell",null,null,null,null,null,"Michelle Hoyle",null,"Jamie McAra"]
["Rose Gigliuk",null,null,null,null,null,"Katelyn Ayoub",null,"Madison Jenkins"]
["Desiree Tytgat (Coach)",null,null,null,null,null,"Len Madarash (Coach)",null,"Desiree Amos (Coach)"]
[]
[{"$f":"+I95+1","v":2024},null,{"$f":"+A105+1","v":2025},null,{"$f":"+C105+1","v":2026},null,{"$f":"+E105+1","v":2027},null,{"$f":"+G105+1","v":2028}]
["2024 - EDMONTON *"]
["Jenna Lamoureux"]
["Katelynn Ayoub"]
["Julie Orobko"]
["Jamie McAra"]
["Heidi Mapstone"]
["Natalya Langevin"]
["Desiree Tytgat (Coach)"]

{"sheet":"Men","index":2,"n_rows":113,"n_cols":9,"rows_kept":113,"cut":false,"hidden":false,"merged":[]}
["PROVINCIAL MEN'S TEAM CHAMPIONS"]
[]
["* Indicates the team won Nationals"]
[]
[1974,null,{"$f":"+A5+1","v":1975},null,{"$f":"+C5+1","v":1976},null,{"$f":"+E5+1","v":1977},null,{"$f":"+G5+1","v":1978}]
["EDMONTON",null,"CALGARY *",null,"EDMONTON *",null,"EDMONTON *",null,"CENTRAL"]
["Ian Fraser",null,"Ed Burwash",null,"Brad Anderson",null,"Lynn Howell",null,"Lawrence Fobert"]
["Bob Leenders",null,"Frank Fernetti",null,"Lynn Howell",null,"Mike Tweedy",null,"Geno Ziebarth"]
["Dan Meilke",null,"Ken Kurtz",null,"Roy Kania",null,"Bruce Morter",null,"Shelby Chrest"]
["Mel Miller",null,"Roy Cunningham",null,"Bruce Morter",null,"Brad Anderson",null,"Blair Pizzey"]
["Chris Runnalls",null,"Duane Plato",null,"Gerard Parker",null,"Tom Stevenson",null,"Greg Gigliuk"]
["Bernie Stotyn",null,"Owen Gottselig",null,"Stan Hesp",null,"Len Madarash",null,"Brad Aasen"]
["Jan Leenders (Coach)",null,"Jack Smeed (Coach)",null,"Dwight Anderson (Coach)",null,"Don MacIver (Coach)",null,"Bob Guthrie (Coach)"]
[]
[{"$f":"+I5+1","v":1979},null,{"$f":"+A15+1","v":1980},null,{"$f":"+C15+1","v":1981},null,{"$f":"+E15+1","v":1982},null,{"$f":"+G15+1","v":1983}]
["EDMONTON *",null,"CALGARY",null,"CENTRAL",null,"CALGARY",null,"CALGARY"]
["Dwight Anderson",null,"Don Sim",null,"Mark Jackson",null,"Colin Keir",null,"Rich Weber"]
["Clare Lakeman",null,"Terry Farquharson",null,"Greg Gigliuk",null,"Danny Gomboc",null,"Adam Weber"]
["Bob Leenders",null,"Bob Miller",null,"Stan Skoye",null,"Len Pharoah",null,"Rick Heinrich"]
["John Martel",null,"Brian Rossetti",null,"Lawrence Fobert",null,"Harvie Pocza",null,"Len Pharoah"]
["Bill Murphy",null,"Bob Bakos",null,"Gene Ziebarth",null,"Dave Alexander",null,"Harvie Pocza"]
["Al Noppers",null,"Ken Norris",null,"Tom Stevenson",null,"Brian Rossetti",null,"TJ Carriere"]
["Gene Gagnon (Coach)",null,"Doug Goodman (Coach)",null,"Tom Alford (Coach)",null,"Shelley Struthers (Coach)",null,"Linda Raymond (Coach)"]
[]
[{"$f":"+I15+1","v":1984},null,{"$f":"+A25+1","v":1985},null,{"$f":"+C25+1","v":1986},null,{"$f":"+E25+1","v":1987},null,{"$f":"+G25+1","v":1988}]
["CALGARY *",null,"CENTRAL",null,"CENTRAL *",null,"EDMONTON *",null,"EDMONTON *"]
["Wilf Appel",null,"Greg Gigliuk",null,"Doug Morrical",null,"Tom Stevenson",null,"Mark Johnstone"]
["Dave Lewis",null,"Lawrence Fobert",null,"Gene Ziebarth",null,"Mark Jackson",null,"Sean Heller"]
["Al Hong",null,"Jan Andersen",null,"Tom Alford",null,"Gord Mattern",null,"Brett Wren"]
["Gene Balone",null,"Dave Nelson",null,"Lawrence Fobert",null,"Bruce Morter",null,"Perry Gillam"]
["Larry Ellert",null,"Bill Tronnes",null,"Jan Andersen",null,"Jim Norkus",null,"Bruce Morter"]
["Don Sim",null,"Gary Tunbridge",null,"Harry George",null,"Kevin Johnson",null,"Matt Schultz"]
["Tom Campbell (Coach)",null,"Tom Alford (Coach)",null,"Ed Gabrielson (Coach)",null,"Don MacIver (Coach)",null,"Lynn Howell (Coach)"]
[]
[{"$f":"+I25+1","v":1989},null,{"$f":"+A35+1","v":1990},null,{"$f":"+C35+1","v":1991},null,{"$f":"+E35+1","v":1992},null,{"$f":"+G35+1","v":1993}]
["SOUTHERN",null,"SOUTHERN *",null,"CENTRAL *",null,"CENTRAL *",null,"SOUTHERN"]
["John Rempel",null,"Bill Todd",null,"Jan Andersen",null,"Gene Ziebarth",null,"Rob Price"]
["Darrell Lagler",null,"Ken Kurtz",null,"Lawrence Fobert",null,"Vince Chartier",null,"Kurtis Deering"]
["Brian Stonehouse",null,"Roy Cunningham",null,"Mike Tweedy",null,"Lawrence Fobert",null,"Duane Plato"]
["Les Dyke",null,"Ryan Bader",null,"Mike DiPietro",null,"Gary Baird",null,"Darren Bridge"]
["Steve Pedersen",null,"Tom Stevenson",null,"Greg Gigliuk",null,"Brad Sinclair",null,"Dan Rattai"]
["Ken King",null,"Harry Topliffe",null,"Rollie Gervais",null,"Bob Guthrie",null,"Jim Vercammen"]
["Bert Mezei (Coach)",null,"Jerry Mezei (Coach)",null,"Ed Gabrielson (Coach)",null,"Eric Andersen (Coach)",null,"Fred Anderson (Coach)"]
[]
[{"$f":"+I35+1","v":1994},null,{"$f":"+A45+1","v":1995},null,{"$f":"+C45+1","v":1996},null,{"$f":"+E45+1","v":1997},null,{"$f":"+G45+1","v":1998}]
["SOUTHERN",null,"EDMONTON",null,"EDMONTON",null,"SOUTHERN",null,"EDMONTON *"]
["Frank Fernetti",null,"Bob Leenders",null,"Lynn Howell",null,"Ken Malcomson",null,"Tim Wiseman"]
["Ken King",null,"Bruce Morter",null,"Barrett Gamble",null,"Kurtis Deering",null,"Mark Johnstone"]
["Ken Kurtz",null,"Dwight Anderson",null,"Russ Baldwin",null,"Dan Rattai",null,"Bruce Morter"]
["Jack Rumsey",null,"Stan Hesp",null,"Clare Lakeman",null,"Jim Smeed",null,"Brett Mapstone"]
["Jack Smeed",null,"Gord McCutcheon",null,"Bob Bruneau",null,"Duane Plato",null,"Sean Heller"]
["Brian Stonehouse",null,"Don MacDonald",null,"Tom Stevenson",null,"Derek Lewicki",null,"Dexter Wiseman"]
["Vic Collomb (Coach)",null,"George Lund (Coach)",null,"Ian Fraser (Coach)",null,"Fred Anderson (Coach)",null,"Lynn Howell (Coach)"]
[]
[{"$f":"+I45+1","v":1999},null,{"$f":"+A55+1","v":2000},null,{"$f":"+C55+1","v":2001},null,{"$f":"+E55+1","v":2002},null,{"$f":"+G55+1","v":2003}]
["SOUTHERN",null,"SOUTHERN",null,"CALGARY",null,"EDMONTON *",null,"CALGARY *"]
["Darrell Lagler",null,"Ken Malcomson",null,"Brian Hill",null,"Mark Jackson",null,"Adam Weber"]
["Brian Stonehouse",null,"Brent Chambers",null,"Doug Goodman",null,"Jim Norkus",null,"TJ Carriere"]
["Ken Weitz",null,"John Rempel",null,"Kevin Holdsworth",null,"Mark Johnstone",null,"Mark Miller"]
["Ken Kurtz",null,"Tom Baker",null,"Brian Rossetti",null,"Cassey Campbell",null,"Danny Gomboc"]
["Harry Topliffe",null,"Murray Westling",null,"Colin Keir",null,"Sean Smith",null,"Eric Christensen"]
["Jack Smeed",null,"Ken Kurtz",null,"Ken Norris",null,"Darrell Bradley",null,"Stevan Loertscher"]
["Jack Smeed (Coach)",null,"Jack Smeed (Coach)",null,"Bob Edmonds (Coach)",null,"Don MacIver (Coach)",null,"Brian Rossetti (Coach)"]
[]
[{"$f":"+I55+1","v":2004},null,{"$f":"+A65+1","v":2005},null,{"$f":"+C65+1","v":2006},null,{"$f":"+E65+1","v":2007},null,{"$f":"+G65+1","v":2008}]
["EDMONTON",null,"EDMONTON",null,"EDMONTON",null,"EDMONTON",null,"EDMONTON"]
["Clare Lakeman",null,"Roy Kania",null,"Steve Cummings",null,"Mark Johnstone",null,"Mark Johnstone"]
["Marty Bush",null,"Bruce Morter",null,"Bruce Morter",null,"Steve Stasiuk",null,"Mike Lacoursiere"]
["Bob Power",null,"Bill Froehler",null,"Barrett Gamble",null,"Sean Smith",null,"Derek Gall"]
["Dwight Anderson",null,"Gerard Parker",null,"Richard Salyzyn",null,"Darrell Bradley",null,"Aaron Arndt"]
["Rod Jensen",null,"Dale Lorenz",null,"Kevin Kohut",null,"Mark Jackson",null,"Matt Schultz"]
["Mike Masse",null,"Stan Hesp",null,"Brian Goodhope",null,"Marty Bush",null,"Brett Wren"]
["John Martel (Coach)",null,"Dwight Anderson (Coach)",null,"Lynn Howell (Coach)",null,"Lynn Howell (Coach)",null,"Lynn Howell (Coach)"]
[]
[{"$f":"+I65+1","v":2009},null,{"$f":"+A75+1","v":2010},null,{"$f":"+C75+1","v":2011},null,{"$f":"+E75+1","v":2012},null,{"$f":"+G75+1","v":2013}]
["SOUTHERN",null,"CALGARY",null,"CALGARY",null,"CENTRAL *",null,"EDMONTON"]
["Darrell Lagler",null,"Don Sim",null,"Roy Cunningham",null,"Brad Aasen",null,"Brett Mapstone"]
["Brian Stonehouse",null,"Terry Farquharson",null,"Colin Keir",null,"Gary Baird",null,"Tim Wiseman"]
["Ed Burwash",null,"Roy Cunningham",null,"Scott Laing",null,"Vince Chartier",null,"Rimo Nestor"]
["Roy Cunningham",null,"Colin Keir",null,"Brian Rossetti",null,"Lawrence Fobert",null,"Matt Schultz"]
["Ken Malcomson",null,"Doug Goodman",null,"Robert Shanas",null,"Blair Pizzey",null,"Sean Smith"]
["Jack Smeed",null,"Brian Rossetti",null,"Joe Wood",null,"Greg Gigliuk",null,"Dexter Wiseman"]
["Don Gill (Coach)",null,"Wilf Kuss (Coach)",null,"Bob Edmonds (Coach)",null,"Mike Tweedy (Coach)",null,"Cassey Campbell (Coach)"]
[]
[{"$f":"+I75+1","v":2014},null,{"$f":"+A85+1","v":2015},null,{"$f":"+C85+1","v":2016},null,{"$f":"+E85+1","v":2017},null,{"$f":"+G85+1","v":2018}]
["CALGARY",null,"CENTRAL",null,"CENTRAL *",null,"EDMONTON *",null,"CENTRAL"]
["Derek Home",null,"Gary Baird",null,"Gary Baird",null,"Adam Weber",null,"Gary Baird"]
["Kyle Greggain",null,"Victor Fobert",null,"Victor Fobert",null,"Freddie Tofflemire",null,"Karie Kreutz"]
["Harvie Pocza",null,"Greg Gigliuk",null,"Karie Kreutz",null,"Adam Kemp",null,"Gene Ziebarth"]
["Eric Christensen",null,"Gene Ziebarth",null,"Shelby Chrest",null,"Tim Wiseman",null,"Harvey Von Hollen"]
["Mark Miller",null,"Brandon Cockburn",null,"Erik Kjos",null,"Sean Heller",null,"Justin Langrock "]
["Rick Heinrich",null,"Erik Kjos",null,"Gene Ziebarth",null,"Evan Lacoursiere",null,"Shelby Chrest"]
["Brenda McCannel (Coach)",null,"Lynn Howell (Coach)",null,"Greg Gigliuk (Coach)",null,"Mike Lacourisere (Coach)",null,"Michael Tweedy (Coach"]
[]
[{"$f":"+I85+1","v":2019},null,{"$f":"+A95+1","v":2020},null,{"$f":"+C95+1","v":2021},null,{"$f":"+E95+1","v":2022},null,{"$f":"+G95+1","v":2023}]
["EDMONTON *",null,"",null,"",null," EDMONTON *",null,"EDMONTON"]
["Tim Wiseman",null,null,null,null,null,"Adam Weber",null,"Dexter Wiseman"]
["Adam Weber",null,null,null,null,null,"Tyler Tytgat",null,"Tyler Tytgat"]
["Dexter Wiseman",null,"Covid",null,"Covid",null,"Tim Wiseman",null,"Adam Weber"]
["Bradly Tytgat",null,"Cancellation",null,"Cancellation",null,"Adam Kemp",null,"Adam Kemp"]
["Michael Marciano",null,null,null,null,null,"Bradly Tytgat",null,"Jeremy Harasymchuk"]
["Curtis Dunis",null,null,null,null,null,"Brett Wren",null,"Bradly Tytgat"]
["Lynn Howell (Coach",null,null,null,null,null,"Lynn Howell (Coach)",null,"Lynn Howell (Coach)"]
[]
[{"$f":"+I95+1","v":2024},null,{"$f":"+A105+1","v":2025},null,{"$f":"+C105+1","v":2026},null,{"$f":"+E105+1","v":2027},null,{"$f":"+G105+1","v":2028}]
["2024 - NORTH"]
["Thomas Tomkins"]
["Robert Tomkins"]
["Dustin Thompson"]
["Israel Bellavance"]
["Sean Tomkins"]
["Rylan Willier"]
["Gerald Hafner (Coach)"]

{"sheet":"Mixed","index":3,"n_rows":121,"n_cols":9,"rows_kept":121,"cut":false,"hidden":false,"merged":[]}
["PROVINCIAL MIXED TEAM CHAMPIONS"]
[]
["* Indicates the team won Nationals"]
[]
[1974,null,{"$f":"+A5+1","v":1975},null,{"$f":"+C5+1","v":1976},null,{"$f":"+E5+1","v":1977},null,{"$f":"+G5+1","v":1978}]
["SOUTHERN *",null,"CALGARY *",null,"CENTRAL",null,"CALGARY",null,"CALGARY"]
["Ken Malcomson",null,"Dennis Westover",null,"Kathy Gabrielson",null,"Shannon Scott",null,"Jennifer Ladan"]
["Linda Malcomson",null,"Arlene Beerbaum",null,"Sandra Cockburn",null,"Judy Kanigan",null,"Judy Stratton"]
["Steve Pedersen",null,"Barb Douglas",null,"Marlene Gill",null,"Linda Raymond",null,"Melinda Shilton"]
["Jeanette Smeed",null,"Greg Gigliuk",null,"Tom Stevenson",null,"Bob Miller",null,"TJ Carriere"]
["Ken King",null,"Bob Miller",null,"Jan Andersen",null,"Scott Laing",null,"Robert Wolfson"]
["Dianne Violini",null,"Tom Anderson",null,"Tony Steere",null,"Don Sim",null,"Adam Weber"]
["Roy Cunningham",null,"Dave Lewis",null,"Bernie Fournier",null,"Colin Keir",null,"Brian Rossetti (Coach)"]
["Jack Smeed (Coach)",null,"Doug Goodman (Coach)",null,"Don Gill (Coach)",null,"Rick Wagner (Coach)"]
[]
[{"$f":"+I5+1","v":1979},null,{"$f":"+A16+1","v":1980},null,{"$f":"+C16+1","v":1981},null,{"$f":"+E16+1","v":1982},null,{"$f":"+G16+1","v":1983}]
["EDMONTON",null,"CALGARY",null,"NORTHERN",null,"CALGARY",null,"EDMONTON"]
["John Blyth",null,"Colin Keir",null,"Kathy Dyer",null,"Annette Bruneau",null,"Tina Arychuk"]
["Ebba Anderson",null,"Tom Anderson",null,"Marilyn Gray",null,"Pamela Marshall",null,"Annette Gamborski"]
["Rose Denman",null,"Greg Gigliuk",null,"Diane Nelson",null,"Sandra Murray",null,"Melissa Werrell"]
["George Hawkins",null,"Barry Martin",null,"Wayne Adams",null,"Roy Cunningham",null,"Mike Lacoursiere"]
["Barry Desnoyers",null,"Fran Jones",null,"Jerry Shepherd",null,"Terry Farquharson",null,"Chance Anderson"]
["Lynn Howell",null,"Nancy Harris",null,"Brian Murray",null,"Rick Wagner",null,"Perry Gillam"]
["Joan Robertson",null,"Helen Barry",null,"Ryan Gardner",null,"Bob Miller",null,"Cisco Beyersbergen (Coach)"]
["Jan Leenders(Coach)",null,"Shar Williams (Coach)",null,"Jim Hohne (Coach)",null,"Doug Goodman (Coach)"]
[]
[{"$f":"+I16+1","v":1984},null,{"$f":"+A27+1","v":1985},null,{"$f":"+C27+1","v":1986},null,{"$f":"+E27+1","v":1987},null,{"$f":"+G27+1","v":1988}]
["CALGARY",null,"CALGARY",null,"SOUTHERN *",null,"CALGARY *",null,"CALGARY"]
["Sharon Capewell",null,"Tammy Richardson",null,"Dan Rattai",null,"Greg Koch",null,"Jennifer Ladan"]
["Chris MacKinnon",null,"Barb Douglas",null,"Duane Plato",null,"Doug Goodman",null,"Brenda McCannel"]
["Faylene Valdes",null,"Bea MacPhail",null,"Brian Stonehouse",null,"Len Pharoah",null,"Alyssa Madsen"]
["Ron Sansom",null,"Al Scheer",null,"Harvey Martin",null,"Tracy Ranta",null,"TJ Carriere"]
["Tom Campbell",null,"Brian McGillivry",null,"Trudy Kurtz",null,"Jeannette Doyle",null,"Al Kosciuk"]
["Ray Miller",null,"Bill Schwalm",null,"Shelly Mayer",null,"Gail Sweeny",null,"Adam Weber"]
["Bob Miller",null,"Joe Wood",null,"Lyndell Brekko",null,"Wilf Kuss",null,"Linda Raymond (Coach)"]
["Don Sim (Coach)",null,"Fran Clarke (Coach)",null,"Frank Fernetti (Coach)",null,"Fran Clarke (Coach)"]
[]
[{"$f":"+I27+1","v":1989},null,{"$f":"+A38+1","v":1990},null,{"$f":"+C38+1","v":1991},null,{"$f":"+E38+1","v":1992},null,{"$f":"+G38+1","v":1993}]
["CALGARY",null,"CALGARY *",null,"EDMONTON",null,"CALGARY",null,"SOUTHERN *"]
["Sharon Capewell",null,"Lorraine Gervais",null,"Brian Goodhope",null,"Stacey Sanderson",null,"Berenda Verpy"]
["Lorraine Gervais",null,"Lynn Holt",null,"Doug Key",null,"Annette Bruneau",null,"Colleen Floberg"]
["Eileen Ramsdale",null,"Mearle Lepla",null,"Dwight Anderson",null,"Debbie BoswelI",null,"Terri Holt"]
["Stan Black",null,"Barry Ellert",null,"John Martel",null,"Derek Home",null,"Brett Wren"]
["Bob Miller",null,"Reggie Zwicker",null,"Janice Jensen",null,"Greg Koch",null,"Mike Hirsche"]
["Al Scheer",null,"Dave Sanderson",null,"Tracy Boytel",null,"Terry Smithson",null,"Jim Smeed"]
["Aldo Serblin",null,"Bob Miller",null,"Sharon Tarasoff",null,"Rich Weber",null,"Mike Fernetti (Coach)"]
["Don Sim (Coach)",null,"Don Sim (Coach)",null,"Danny Clapp (Coach)",null,"Rick Nowosad (Coach)"]
[]
[{"$f":"+I38+1","v":1994},null,{"$f":"+A49+1","v":1995},null,{"$f":"+C49+1","v":1996},null,{"$f":"+E49+1","v":1997},null,{"$f":"+G49+1","v":1998}]
["SOUTHERN",null,"EDMONTON",null,"EDMONTON",null,"CALGARY *",null,"CALGARY"]
["Eleanor Dorigatti",null,"Roy Kania",null,"Bruce Morter",null,"Rachel McDonald",null,"Colin Christensen"]
["Les Dyke",null,"Pearl Hindle",null,"Ken Klassen",null,"Annette Bruneau",null,"Rick Heinrich"]
["Dianne Violini",null,"Brian Goodhope",null,"Dwight Anderson",null,"Shelley Slator",null,"Kyle Greggain"]
["Lyndell Brekko",null,"Janice Tipler",null,"John Martel",null,"Rich Weber",null,"Jennifer Ladan"]
["Darwin Romanchuk",null,"Lynn Howell",null,"Marcy Clapp",null,"Tom Stevenson",null,"Pamela Wilson"]
["Harry Topliffe",null,"Diane Vickery",null,"Carol Swartz",null,"Robert Wolfson",null,"Beverley Magnus"]
["Roy Cunningham",null,"Robin Powell",null,"Janice Jensen",null,"TJ Carriere",null,"Linda Raymond (Coach)"]
["Jack Smeed (Coach)",null,"Ian Fraser (Coach)",null,"Danny Clapp (Coach)",null,"Brian Rossetti (Coach)"]
[]
[{"$f":"+I49+1","v":1999},null,{"$f":"+A60+1","v":2000},null,{"$f":"+C60+1","v":2001},null,{"$f":"+E60+1","v":2002},null,{"$f":"+G60+1","v":2003}]
["EDMONTON",null,"SOUTHERN",null,"EDMONTON",null,"EDMONTON *",null," CALGARY"]
["John Martel",null,"Mike DiPietro",null,"Michelle Hoyle",null,"Treena Neufeld ",null,"Rich Weber"]
["Darien McConaghie",null,"Robin Stanton",null,"Tracy Boytel",null,"Sandra Helmer ",null,"Tom Stevenson"]
["Dennis Klien",null,"Durwin Noble",null,"Adele Burynuik",null,"Cathie Pearson ",null,"Derek Home"]
["Audrey Sakowsky",null,"Dan Rattai",null,"Barrett Gamble",null,"Curtis Kaplan ",null,"Alyssa Madsen"]
["Tom Alford",null,"Lori Kelly",null,"Randy Clarke",null,"Tony Steere ",null,"Brittney Johnson Olsen"]
["Sherry Lesyk",null,"Masa Goshinmon",null,"Lynn Howell",null,"Bruce Morter ",null,"Linda Raymond"]
["Lloyd Cox",null,"Pam Stonehouse",null,"Danny Clapp",null,"Lynn Howell (Coach)",null,"Debbie Boswell (Coach)"]
["Stan Hesp (Coach)",null,"Brian Stonehouse (Coach)",null,"Tom Boytel (Coach)"]
[]
[{"$f":"+I60+1","v":2004},null,{"$f":"+A71+1","v":2005},null,{"$f":"+C71+1","v":2006},null,{"$f":"+E71+1","v":2007},null,{"$f":"+G71+1","v":2008}]
["CALGARY",null,"CENTRAL *",null,"EDMONTON",null,"CENTRAL",null,"EDMONTON"]
["Al Hong",null,"Lynn Miller",null,"Leanne Eriksen",null,"Mike Tweedy",null,"Brett Mapstone"]
["Marie Davidson",null,"Marg Sloan",null,"Brad Anderson",null,"Vince Chartier",null,"Brad Aasen"]
["Larry Ellert",null,"Geraldine Ford",null,"Sandra Helmer",null,"Rollie Gervais",null,"Darrell Bradley"]
["Tracy Koftinoff",null,"Greg Gigliuk",null,"Gerard Parker",null,"Tricia Mantai",null,"Caity Shearer"]
["Doug Goodman",null,"Fred Milner",null,"Lisa Hargrove",null,"Andrea Leavitt",null,"Michelle Hoyle"]
["Dennis Westover",null,"Rollie Gervais",null,"John Martel",null,"Rhonda Barber",null,"Kristin Pitman"]
["Hubert Kenda",null,"Jan Andersen",null,"Len Madarash",null,"Dale Holfeld (Coach)",null,"Cassey Campbell (Coach)"]
["John Mathews (Coach)",null,"Tom Alford (Coach)",null,"Dwight Anderson (Coach)"]
[]
[{"$f":"+I71+1","v":2009},null,{"$f":"+A82+1","v":2010},null,{"$f":"+C82+1","v":2011},null,{"$f":"+E82+1","v":2012},null,{"$f":"+G82+1","v":2013}]
["SOUTHERN",null,"CENTRAL",null,"SOUTHERN",null,"EDMONTON",null,"EDMONTON"]
["Ken Kurtz",null,"Nancy Gervais",null,"Teri Holt",null,"Barry Urquhart",null,"Amanda Bell"]
["Harry Topliffe",null,"Lis Jorgensen",null,"Debbie Poirier",null,"Mike Lacoursiere",null,"Kristin Heller"]
["Bob Costanzo",null,"Dianne Moore",null,"Bobbi Verpy",null,"Greg Amundson",null,"Jennifer Baldwin"]
["Frank Fernetti",null,"Stan Skoye",null,"Justin Bander",null,"Heather Wellman",null,"Mark Graff"]
["Janet Froehlich",null,"Tom Alford",null,"Doug Campbell",null,"Treena Neufeld",null,"Bruce Morter"]
["Alvina Cunningham",null,"Yves Vezina",null,"Durwin Noble",null,"Christine Linnen",null,"Adam Kemp"]
["Joanne Dewalt",null,"Lonnie Staples",null,"Dan Rattai"]
["Jerry Mezei (Coach)",null,"Bob Guthrie (Coach)",null,"Jerry Kind (Coach)",null,"Dwight Anderson (Coach)",null,"Lynn Howell (Coach)"]
[]
[{"$f":"+I82+1","v":2014},null,{"$f":"+A93+1","v":2015},null,{"$f":"+C93+1","v":2016},null,{"$f":"+E93+1","v":2017},null,{"$f":"+G93+1","v":2018}]
["EDMONTON",null,"CALGARY",null,"EDMONTON *",null,"CALGARY",null,"CALGARY"]
["Jesse Bouchard",null,"Eric Christensen",null,"Chris Hyslop",null,"Susan Anderson",null,"Mark Polivchuk"]
["Adam Kemp",null,"Rick Heinrich",null,"Mike Lacoursiere",null,"Christine Pocza",null,"Parker Anderson"]
["Brett Mapstone",null,"Bryan Hirst",null,"Matt Schultz",null,"Chirstie Wright",null,"Rick Heinrich"]
["Shannon Roden",null,"Brittney Johnson",null,"Rose Gigliuk",null,"Harvie Pocza",null,"Maria Dalton"]
["Annette Campbell",null,"Melynda Bruneau",null,"Melissa Werrell",null,"Mark Polivchuk",null,"Judy Stratton"]
["Halea DeSutter",null,"Beverley Magnus",null,"Michelle Hoyle",null,"Rick Heinrich",null,"Beverley Magnus"]
["Cassey Campbell (Coach)",null,"Tom Stevenson (Coach)",null,"Casey Campbell (Coach)",null,"Geoff Wilson (Coach)",null,"Brenda McCannel (Coach)"]
[]
[{"$f":"+I93+1","v":2019},null,{"$f":"+A103+1","v":2020},null,{"$f":"+C103+1","v":2021},null,{"$f":"+E103+1","v":2022},null,{"$f":"+G103+1","v":2023}]
["EDMONTON",null,"",null,"",null,"CALGARY",null,"EDMONTON"]
["Brett Wren",null,null,null,null,null,"Beverly Magnus",null,"Cody Steere"]
["Brett Mapstone",null,null,null,null,null,"Deena Ritchie",null,"Aaron Arndt"]
["Adam Kempt",null,"Covid",null,"Covid",null,"Pamela Wilson",null,"Brett Mapstone"]
["Brittnee Lakusta",null,"Cancellation",null,"Cancellation",null,"Rob Wolfson",null,"Katelynn Ayoub"]
["Julie Orobko",null,null,null,null,null,"Ian Howe",null,"Caity Hicks"]
["Christine Wren",null,null,null,null,null,"Mike Herbert",null,"Danielle DeBlois"]
["Gerry Anderson (Coach)",null,null,null,null,null,"Geoff Wilson (Coach)",null,"Tim Wiseman (Coach)"]
[]
[{"$f":"+I103+1","v":2024},null,{"$f":"+A113+1","v":2025},null,{"$f":"+C113+1","v":2026},null,{"$f":"+E113+1","v":2027},null,{"$f":"+G113+1","v":2028}]
["2024 - EDMONTON *"]
["Adam Weber"]
["Cody Jubinville"]
["Adam Kemp"]
["Katie Rayner"]
["Keera Usman"]
["Madison Jenkins"]
["Chris Hyslop (Coach)"]

{"sheet":"Singles","index":4,"n_rows":55,"n_cols":5,"rows_kept":55,"cut":false,"hidden":false,"merged":[]}
["PROVINCINAL SINGLES CHAMPIONS"]
[]
["LADIES CHAMPION",null,null,"MEN'S SINGLES"]
["Champion","Zone","Year","Champion","Zone"]
["Ebba Anderson","Edmonton",1974,"Bernie Sutton","Edmonton"]
["Shar Plato","Edmonton",1975,"Doug Carritt","Central"]
["Shar Plato","Edmonton",1976,"Stan Black","Calgary"]
["Lyndell Brekko","Southern",1977,"Jan Andersen","Central *"]
["Jan Bennett","Northern",1978,"Wilf Appel","Calgary"]
["Gerry Anderson","Edmonton",1979,"Doug Morrical","Central"]
["Dianne Violini","Southern",1980,"Larry Scheer","Northern"]
["Diane Morrical","Central",1981,"Darrell Lagler","Southern *"]
["Charleen Hodgins","Calgary *",1982,"Ray Sylvester","Northern"]
["Bev Meyer","Central",1983,"Terry Farquharson","Calgary"]
["Bev Meyer","Central *",1984,"Ken Norris","Calgary"]
["Bev Meyer","Central",1985,"Roy Cunningham","Southern"]
["Dianne Violini","Southern",1986,"Dwight Anderson","Edmonton"]
["Bev Meyer","Central",1987,"Ken Malcomson","Southern"]
["Dianne Violini","Southern",1988,"Mark Jackson","Central"]
["Bev Gigliuk","Central",1989,"Mike DiPietro","Southern"]
["Adele Burynuik","Northern",1990,"Lynn Howell","Edmonton"]
["Sharlene Waldorf","Northern",1991,"Greg Gigliuk","Central"]
["Susan Anderson","Calgary",1992,"Greg Dobbie","Northern"]
["Adele Burynuik","Edmonton",1993,"Lawrence Fobert","Central"]
["Bev Gigliuk","Central",1994,"Russ Baldwin","Edmonton"]
["Janice Lacoursiere","Edmonton",1995,"Doug Morrical","Central"]
["Jennifer Marshall","Calgary *",1996,"Steve Cummings","Edmonton"]
["Jennifer Marshall","Calgary *",1997,"Scott Laing","Calgary"]
["Penny Noble","Southern *",1998,"Bruce Morter","Edmonton"]
["Jennifer Marshall","Calgary",1999,"Bruce Morter","Edmonton *"]
["Jennifer Marshall","Calgary",2000,"Gene Ziebarth","Central *"]
["Dianne Violini","Southern",2001,"Brian Murray","Northern"]
["Penny Noble","Southern",2002,"Ian Dobbie","Northern"]
["Tracy Smith  ","Edmonton",2003,"Tom Stevenson  ","Calgary"]
["Bobbi Sisko","Southern",2004,"Ian Dobbie","Northern"]
["Bev Yaworenko","Calgary",2005,"Tom Stevenson  ","Calgary"]
["Bev Yaworenko","Calgary",2006,"Rick Heinrich","Calgary"]
["Bobbi Sisko","Southern",2007,"Adam Weber","Calgary *"]
["Dianne Violini","Southern",2008,"Lawrence Fobert","Central"]
["Michelle Hoyle","Edmonton",2009,"Gene Ziebarth","Central"]
["Dianne Violini","Southern *",2010,"Mark Johnstone","Edmonton"]
["Bonnie McDonald","Northern",2011,"Adam Weber","Calgary"]
["Tara Seitz","Southern",2012,"Derek Home","Calgary"]
["Dianne Violini","Southern",2013,"Victor Fobert","Northern *"]
["Bonnie McDonald","Northern",2014,"Gary Baird","Central"]
["Bonnie McDonald","Northern",2015,"Greg Gigliuk","Central"]
["Tracy Smith","Calgary",2016,"Adam Weber","Edmonton"]
["Bonnie McDonald","Northern",2017,"Mike Christmann","Southern"]
["Kelsy Wilton","Calgary",2018,"Adam Weber","Edmonton *"]
["Jennifer Baker","Edmonton",2019,"Adam Weber","Edmonton *"]
["Covid",null,{"$f":"+C50+1","v":2020},"Covid"]
["Covid",null,{"$f":"+C51+1","v":2021},"Covid"]
["Jenna Lamoureux","Edmonton",2022,"Adam Weber","Edmonton"]
["Jenn Baker","Central",2023,"Derek Home","Calgary *"]
["Damara Halvorson","Calgary",2024,"Tyler Tytgat","Edmonton *"]

{"sheet":"Natl Champs","index":5,"n_rows":80,"n_cols":3,"rows_kept":80,"cut":false,"hidden":false,"merged":[]}
["ALBERTA  NATIONAL CHAMPIONS"]
[]
[" LADIES  TEAMS"]
[]
[1975,"Southern","Isabelle Bergman, Lyndell Brekko, Sandra Hunt, Linda Malcomson, Anita Robinson (Doell), Dianne Violini, Coach - Roy Cunningham"]
[]
[1982,"Calgary","Bonnie Clark (Jones),  Debbie Kingsmith, Charlene Hodgins (Miller), Fran Clarke, Nancy Harris (Bakos),Tracy Findlater,  Coach - Shar Williams"]
[]
[1994,"Edmonton","Lil Broda, Donna Heidinger, Adele Burnuik, Lainie Mailer, Pam Iback (Horne), Tracy Boytel (Smith),  Coach -  Tom Boytel"]
[]
[1996,"Calgary","Jennifer Marshall, Anne Norris, Jeanette Beaulieu (Doyle), Judy Kanigan (Stratton), Annette Bruneau, Rachel McDonald (Auger),   Coach - Don Marshall"]
[]
[2014,"Calgary","Jennifer Ladan, Beverley Magnus, JeriLee Meadus, Melynda Bruneau, Sheena Owens, Ann-Marie Wilton, Coach - Tom Stevenson"]
[]
[2019,"Edmonton","Heidi Mapstone, Jennifer Baker, Michelle Heidinger, Katie Rayner, Annette Campbell, Rose Gigliuk, Coach - Desiree Tytgat"]
[]
[2023,"Edmonton","Jenna Lamoureux, Katie Rayner, Julie Orobko, Heidi Mapstone, Jamie McAra, Madison Jenkins, Coach Desiree Amos"]
[]
[2024,"Edmonton","Jenna Lamoureux, Katelynn Ayoub, Julie Orobko, Jamie McAra, Heidi Mapstone, Natalya Langevin, Desiree Tytgat (Coach)"]
[]
[" MENS TEAMS"]
[]
[1975,"Edmonton","Dwight Anderson, Clare Lakeman, Bob Leenders, John Martel, Bill Murphy, Al Noopers, Coach - Jan Leenders"]
[]
[1976,"Calgary","Wilf Appel, Dave Lewis, Gene Balone, Al Hong, Larry Ellert, Don Sim, Coach - Tom Campbell"]
[]
[1985,"Southern","Bill Todd, Ken Kurtz, Roy Cunningham, Ryan Bader, Tom Stevenson, Harry Topliffe, Coach - Jerry Mezei "]
[]
[1990,"Edmonton","Brad Anderson, Lynn Howell, Roy Kania, Bruce Morter, Gerard Parker, Stan Hesp, Coach - Dwight Anderson"]
[]
[1992,"Central","Doug Morrical, Gene Ziebarth, Tom Alford, Lawrence Fobert, Jan Anderson, Harry George, Coach - Ed Gabrielson"]
[]
[1993,"Central","Jan Anderson, Lawrence Fobert, Mike Tweedy, Mike DiPietro, Greg Gigliuk, Rollie Gervais, Coach - Ed Gabrielson"]
[]
[1998,"Edmonton","Lynn Howell, Mike Tweedy, Bruce Morter, Brad Anderson, Tom Stevenson, Len Madarash, Coach - Don MacIver"]
[]
[2000,"Edmonton","Tom Stevenson, Mark Jackson, Gord Mattern, Bruce Morter, Jim Norkus, Kevin Johnson, Coach - Don MacIver"]
[]
[2001,"Central","Gene Ziebarth, Vince Chartier, Lawrence Fobert, Gary Baird, Brad Sinclair, Bob Guthrie, Coach - Eric Andersen"]
[]
[2003,"Edmonton","Mark Jackson, Jim Norkus, Mark Johnstone,Cassey Campbell, Sean Smith, Darrell Bradley, Coach - Don MacIver"]
[]
[2005,"Central","Lawrence Fobert, Gary Baird, Vince Chartier, Greg Gigliuk, Brad Aasen, Blair Pizzey, Coach - Mike Tweedy"]
[]
[2008,"Edmonton","Mark Johnstone, Sean Heller, Brett Wren, Perry Gillam, Bruce Morter, Matt Schultz, Coach - Lynn Howell"]
[]
[2010,"Edmonton","Tim Wiseman, Mark Johnstone, Bruce Morter, Brett Mapstone, Sean Heller, Dexter Wiseman, Coach - Lynn Howell"]
[]
[2011,"Calgary","Adam Weber, TJ Carriere, Mark Miller, Danny Gomboc, Eric Christensen, Stevan Loertscher, Coach - Brian Rossetti"]
[]
[2016,"Central","Gary Baird, Victor Fobert, Karie Kreutz, Shelby Chrest, Erik Kjos, Gene Ziebarth, Coach - Greg Gigliuk"]
[]
[2017,"Edmonton","Adam Weber, Freddie Tofflemire, Adam Kemp, Tim Wiseman, Sean Heller, Evan Lacoursiere, Coach - Mike Lacoursiere"]
[]
[2019,"Edmonton","Tim Wiseman, Adam Weber, Dexter Wiseman, Bradly Tytgat, Michael Marciano, Curtis Dunis, Coach - Lynn Howell"]
[]
[2022,"Edmonton","Adam Weber, Tyler Tytgat, Tim Wiseman, Adam Kemp, Bradly Tytgat, Brett Wren, Lynn Howell (Coach)"]
[]
[]
[" MIXED  TEAMS"]
[]
[1974,"Southern","Jeanette Smeed, Dianne Violini, Linda Malcolmson, Ken King, Steve Pedersen, Ken Malcolmson, Roy Cunningham, Coach - Jack Smeed"]
[]
[1985,"Calgary","Lorraine Gervais, Lynn Holt, Mearle LePla, Barry Ellert, Reggie Zwicker, Dave Sanderson, Bob Miller , Coach - Don Sim"]
[]
[1988,"Central","Lynn Miller, Marg Sloan, Geraldine Ford, Greg Gigliuk, Fred Milner, Rollie Gervais, Jan Andersen, Coach - Tom Alford"]
[]
[1992,"Southern","Lyndell Brekko, Trudy Kurtz, Shelly Mayer, Brian Stonehouse, Duane Plato, Dan Rattai, Harvey Martin, Coach - Frank Fernetti"]
[]
[2000,"Calgary","Tracy Ranta (Holdsworth), Jeannette Doyle, Gail Sweeny (Elaschuk), Greg Koch, Doug Goodman, Len Pharoah, John Drnasin,  Coach - Fran Clarke"]
[]
[2002,"Calgary","Rachel McDonald (Auger), Annette Bruneau, Heather Weber, Rich Weber, Tom Stevenson, Rob Wolfson,T.J.Carriere, Coach - Brian Rossetti"]
[]
[2003,"Edmonton","Treena Neufeld, Sandra Helmer, Cathie Pearson (Calarco), Curtis Kaplan, Tony Steere, Bruce Morter, Coach - Lynn Howell"]
[]
[2009,"Southern","Brenda Verpy, Colleen Floberg, Terri Holt, Brett Wren, Mike Hirsche, Jim Smeed, Coach - Mike Fernetti"]
[]
[2016,"Edmonton","Chris Hyslop, Mike Lacoursiere, Matt Schultz, Rose Gigliuk, Melissa Werrell, Michelle Hoyle, Coach - Casey Campbell"]
[]
[2024,"Edmonton","Adam Weber, Cody Jubinville, Adam Kemp, Katie Rayner, Keera Usman, Madison Jenkins, Chris Hyslop (Coach)"]

{"sheet":"Aggregate","index":6,"n_rows":106,"n_cols":14,"rows_kept":106,"cut":false,"hidden":false,"merged":[]}
["ALBERTA'S  NATIONAL CHAMPIONS"]
["Starting With Provincial Championships  1974"]
[]
["AGGREGATE"]
[]
[1975,"Shar Plato (Williams), Doug Carritt, Isabelle Bergman, Lyndell Brekko, Sandra Hunt, Linda Malcolmson, Dianne Violini,"]
[null,"Anita Robinson (Doell), John Blyth, Ebba Anderson, Rose Denman, George Hawkins, Barry Desnoyers, Lynn Howell, "]
[null,"Joan Robertson, Dwight Anderson, Clare Lakeman, Bob Leenders, John Martel, Bill Murphy, Al Noppers."]
[null,"Coaches:  Roy Cunningham, Jan Leenders, Gene Gagnon."]
[]
[1976,"Shar Plato (Williams), Stan Black, Lyndell Brekko, Eleanor Dorigatti, Louise Plato, Dianne Violini, Anita Robinson(Doell)"]
[null,"Karyln Spitzer (Kanewischer), Sharon Capewell, Chris MacKinnon, Faylene Valdes, Gene Balone, Don Sim,"]
[null,"Ron Sansom, Tom Campbell, Ray Miller, Bob Miller, Wilf Appel, Dave Lewis, Al Hong, Larry Ellert."]
[null,"Coaches: Steve Pedersen, Tom Campbell, Don Sim."]
[]
[1981,"Diane Morrical, Darrell Lagler, Jeanette Smeed, Lyndell Brekko, Alice Kolibas, Dianne Gerhring, Anita Robinson (Doell),"]
[null,"Dianne Violini, Janet Froehlich, Alvina Cunningham (Brettnell), Joanne Dewalt, Ken Kurtz, Harry Topliffe, Bob Costanzo, "]
[null,"Frank Fernetti, Brian Stonehouse, Ed Burwash, Roy Cunningham, Ken Malcolmson, Jack Smeed."]
[null,"Coaches: Gus Plato, Jerry Mezei, Don Gill."]
[]
[1984,"Bev Meyer(Gigliuk), Ken Norris,  Gale Morrical, Germaine Knipple, Billie Wood, Geraldine Ford, Sandy Barnes, "]
[null,"Tammy Richardson, Barb Douglas(Stratton), Bea MacPhail, Al Scheer, Brian McGillivry, Bill Schwalm,"]
[null,"Joe Wood, Greg Gigliuk, Lawerence Fobert, Jan Andersen, Dave Nelson, Bill Tronnes, Gary Tunbridge."]
[null,"Coaches: Louise Holmes, Fran Clarke, Tom Alford"]
[]
[1985,"Bev Meyer (Gigliuk), Roy Cunningham, Germaine Knipple, Phyl Ward, Billie Wood, Carol Bradford,"]
[null,"Nancy Gervais, Lorraine Gervais, Lynn Holt, Mearle Lepla, Barry Ellert, Reggie Zwicker, Dave Sanderson,"]
[null,"Bob Miller, Bill Todd, Ken Kurtz, Roy Cunningham, Ryan Bader, Tom Stevenson, Harry Topliffe."]
[null,"Coaches: Louise Holmes, Don Sim, Jerry Mezei."]
[]
[1994,"Bev Gigliuk, Russ Baldwin, Lainie Mailer, Tracy Boytel (Smith), Adele Burynuik, Donna Heidinger, Lil Broda,"]
[null,"Pam Ibach (Horne), Marcy Clapp, Janice Jensen, Carol Swartz, Bruce Morter, Ken Klassen, Dwight Anderson,"]
[null,"John Martel, Lynn Howell, Barrett Gamble, Clare Lakeman, Bob Bruneau, Tom Stevenson."]
[null,"Coaches: Tom Boytel, Danny Clapp, Ian Fraser."]
[]
[1996,"Jennifer Marshall, Steve Cummings, Anne Norris, Jeannette Beaulieu (Doyle), Judy Kanigan (Stratton),"]
[null,"Annette Bruneau, Rachel McDonald (Auger),Leanne Ericksen, Sandra Helmer, Lisa Hargrove,  "]
[null,"Brad Anderson, Gerald Parker, John Martel, Len Madarash, Steve Cummings, Bruce Morter, "]
[null,"Barrett Gamble, Richard Salyzyn, Kevin Kohut, Brian Goodhope. "]
[null,"Coaches: Don Marshall, Dwight Anderson, Lynn Howell."]
[]
[1998,"Penny Noble (Hepfner), Bruce Morter, Jennifer Marshall, Rachel McDonald (Auger), Anne Norris, Susan Anderson,"]
[null,"Pamela Marshall (Wilson), Debbie Boswell, Shannon Scott (Clinton), Judy Kanigan (Stratton), Linda Raymond, Bob Miller,"]
[null,"Don Sim, Scott Laing, Colin Keir, Lynn Howell, Mike Tweedy, Brad Anderson, Tom Stevenson, Len Madarash."]
[null,"Coaches: Don Marshall, Rick Wagner, Don MacIver."]
[]
[2000,"Jennifer Marshall, Gene Ziebarth, Stacey Sanderson, Brenda Closen (McCannel), Pam Marshall (Wilson),"]
[null,"Debbie Boswell, Rachel  McDonald (Auger), Tracey Ranta (Holdsworth), Jeannette Doyle,"]
[null,"Gail Sweeney (Elaschuk), Greg Koch, Doug Goodman, Len Pharoah, John Drnasin, Tom Stevenson,"]
[null,"Mark Jackson, Gord Mattern, Bruce Morter, Jim Norkus, Kevin Johnson."]
[null,"Coaches: Don Marshall, Fran Clarke, Don MacIver."]
[]
[2003,"Tracy Smith, Tom Stevenson, Dianne Violini, Michelle Cavanaugh, Kara Kurtz, Penny Noble (Hepfner), Bobbi Sisko, "]
[null,"Colleen Gleed, Treena Neufeld, Sandra Helmer, Cathie Pearson, Curtis Kaplan, Tony Steere, Bruce Morter,"]
[null,"Mark Jackson, Jim Norkus, Mark Johnstone, Cassey Campbell, Sean Smith, Darrell Bradley."]
[null,"Coaches: Jack Smeed, Lynn Howell, Don MacIver."]
[]
[2010,"Dianne Violini, Mark Johstone, Tracy Smith, Tracey Holdsworth, Brenda McCannel, Stacey Sanderson, Jeri-Lee Miller,"]
[null,"Melynda Bruneau, Colin Christensen, Rick Heinrich, Kyle Greggain, Jennifer Ladan, Pamela Wilson, Beverley Magnus,"]
[null,"Tim Wiseman, Bruce Morter, Brett Mapstone, Sean Heller, Dexter Wiseman"]
[null,"Coaches: Geoff Wilson , Linda Raymond, Lynn Howell."]
[]
[2013,"Dianne Violini, Victor Fobert, Michelle Hoyle, Heidi Mapstone, Halea DeSutter, Jennifer Baker, Caity Shearer,"]
[null,"Annette Campbell, Amanda Bell, Kristin Heller, Jennifer Baldwin, Mark Graff, Bruce Morter, Adam Kemp,"]
[null,"Brett Mapstone, Tim Wiseman, Rimo Nester, Matt Schultz, Sean Smith, Dexter Wiseman"]
[null,"Coaches:  Gerry Anderson, Lynn Howell, Cassey Campbell"]
[]
[2014,"Jennifer Ladan, Beverley Magnus, JeriLee Meadus, Melynda Bruneau, Sheena Owens, Ann-Marie Wilton, Stacey "]
[null,"Sanderson-Weber, Annette Bruneau, Brittney Johnson, Derek Home, Kyle Greggain, Harvie Pocza, Eric Christenson, "]
[null,"Mark Miller, Rick Heinrich, Bryan Hirst, Rob Wolfson, Rich Weber"]
[null,"Coaches:  Brenda McCannel, Tom Stevenson, Brian Rossetti"]
[]
[2017,"Michele Hoyle, Rose Gigliuk, Michelle Heidinger, Caity Hicks, Halea DeSutter, Julie Orobko, Adam Weber, Freddie"]
[null,"Tofflemire, Adam Kemp, Tim Wiseman, Sean Heller, Evan Lacoursiere, Susan Anderson, Christine Pocza, Christie"]
[null,"Wright, Harvie Pocza, Mark Polivchuk, Rick Heinrich"]
[null,"Coaches:  Len Madarash, Mike Lacoursiere, Geoff Wilson"]
[]
[2019,"Heidi Mapstone, Jennifer Baker, Michelle Heidinger, Katie Rayner, Annette Campbell, Rose Gigliuk, Tim Wiseman, "]
[null,"Adam Weber,  Dexter Wiseman, Bradly Tytgat, Michael Marciano, Curtis Dunis, Brett Wren, Brett Mapstone, "]
[null,"Adam Kemp, Brittnee Lakusta, Julie Orobko, Christine Wren"]
[null,"Coaches- Desiree Tytgat, Lynn Howell, Gerry Anderson"]
[]
[2022,"Jenna Lamoureux, Heidi Mapstone, Julie Orobko, Katie Rayner, Michelle Hoyle, Katelyn Ayoub"]
[null,"Adam Weber, Tyler Tytgat, Tim Wiseman, Adam Kemp, Bradly Tytgat, Brett Wren"]
[null,"Beverly Magnus, Deena Ritchie, Pamela Wilson, Rob Wolfson, Ian Howe, Mike Herbert"]
[null,"Coaches: Len Madarash, Lynn Howell, Geoff Wilson"]
[]
[2024,"Jenna Lamoureux, Katelynn Ayoub, Julie Orobko, Jamie McAra, Heidi Mapstone, Natalya Langevin"]
[null,"Thomas Tomkins, Robert Tomkins, Dustin Thompson, Israel Bellavance, Sean Tomkins, Rylan Willier"]
[null,"Adam Weber, Cody Jubinville, Adam Kemp, Katie Rayner, Keera Usman, Madison Jenkins"]
[null,"Coaches: Gerald Hafner, Desiree Tytgat, Chris Hyslop"]
[]
["Provincial Aggregate Champions"]
[]
[1974,"Edmonton",null,1986,"Edmonton",null,1998,"Calgary",null,2010,"Calgary",null,2022,"Edmonton"]
[1975,"Edmonton",null,1987,"Southern",null,1999,"Calgary",null,2011,"Calgary",null,2023,"Edmonton"]
[1976,"Calgary",null,1988,"Edmonton?",null,2000,"Calgary",null,2012,"Edmonton",null,2024,"Edmonton"]
[1977,"Southern",null,1989,"Southern",null,2001,"Calgary",null,2013,"Edmonton"]
[1978,"Southern",null,1990,"Central",null,2002,"Southern",null,2014,"Calgary"]
[1979,"Edmonton",null,1991,"Northern",null,2003,"Edmonton",null,2015,"Calgary"]
[1980,"Edmonton",null,1992,"Southern",null,2004,"Edmonton",null,2016,"Edmonton"]
[1981,"Southern",null,1993,"Central",null,2005,"Calgary",null,2017,"Edmonton"]
[1982,"Calgary",null,1994,"Edmonton",null,2006,"Calgary",null,2018,"Calgary"]
[1983,"Calgary",null,1995,"Central",null,2007,"Edmonton",null,2019,"Edmonton"]
[1984,"Central",null,1996,"Edmonton",null,2008,"Calgary",null,2020,"Covid"]
[1985,"Southern",null,1997,"Calgary",null,2009,"Calgary",null,2021,"Covid"]

{"sheet":"40 Year Allstars","index":7,"n_rows":81,"n_cols":8,"rows_kept":81,"cut":false,"hidden":false,"merged":[[0,0,0,7]]}
["40 YEARS OF EXCELLENCE - ALBERTA CHAMPIONS"]
[]
[null,"Total","National","Men's","Ladies","Mixed","Men's","Ladies"]
[null,"Nationals","Gold","Teams","Teams","Teams","Singles","Singles"]
[]
["Allstar Men (Minimum 5 Nationals)"]
[]
["Bruce Morter",{"$f":"SUM(D8:H8)","v":13},7,8,null,3,2]
["Tom Stevenson",10,4,5,null,3,2]
["Lawrence Fobert",9,4,7,null,null,2]
["Greg Gigliuk",9,3,5,null,3,1]
["Roy Cunningham",9,2,5,null,3,1]
["Lynn Howell",8,3,4,null,3,1]
["Bob Miller",7,1,1,null,6]
["Jan Andersen",6,4,3,null,2,1]
["Gene Ziebarth",{"$f":"SUM(D16:H16)","v":6},3,4,null,null,2]
["Mark Johnstone",{"$f":"SUM(D17:H17)","v":6},3,5,null,null,1]
["Adam Weber",{"$f":"SUM(D18:H18)","v":6},2,2,null,2,2]
["Mark Jackson",6,2,4,null,1,1]
["Dwight Anderson",6,1,3,null,2,1]
["Ken Kurtz",6,1,5,null,1]
["Colin Keir",6,null,4,null,2]
["TJ Carriere",{"$f":"SUM(D23:H23)","v":5},2,2,null,3]
["Brian Stonehouse",5,1,4,null,1]
["Ken Malcomson",5,1,3,null,1,1]
["Dan Rattai",5,1,2,null,3]
["John Martel",5,1,1,null,4]
["Brian Rossetti",5,null,5]
[]
["Allstar Women (Minimum 5 Nationals)"]
[]
["Dianne Violini",{"$f":"SUM(D32:H32)","v":19},3,null,10,2,null,7]
["Tracy Smith",10,1,null,7,2,null,1]
["Jennifer Marshall",9,3,null,5,null,null,4]
["Bev Gigliuk",9,1,null,3,null,null,6]
["Lyndell Brekko",8,2,null,5,2,null,1]
["Penny Hepfner",8,1,null,6,null,null,2]
["Judy Stratton",7,1,null,5,2]
["Beverley Magnus",{"$f":"SUM(D39:H39)","v":7},null,null,4,1,null,2]
["Annette Bruneau",7,2,null,3,4]
["Michelle Hoyle",{"$f":"SUM(D41:H41)","v":6},null,null,3,2,null,1]
["Janice Lacoursiere",6,null,null,3,2,null,1]
["Stacey Sanderson",{"$f":"SUM(D43:H43)","v":6},null,null,5,1]
["Jennifer Ladan",{"$f":"SUM(D44:H44)","v":6},null,null,3,3]
["Jeanette Smeed",5,1,null,4,1]
["Bobbi Sisko",5,null,null,2,1,null,2]
["Gerry Anderson",5,null,null,4,null,null,1]
["Susan Anderson",5,null,null,4,null,null,1]
["Brenda McCannel",5,null,null,4,1]
["Traudi Hesp",5,null,null,5]
["Michele Cavanaugh",5,null,null,5]
["Pamela Wilson",5,null,null,3,2]
[]
["Zones"]
[]
["Edmonton",{"$f":"SUM(D56:H56)","v":56},11,16,12,12,8,8]
["Calgary",{"$f":"SUM(D57:H57)","v":54},11,8,11,16,11,8]
["Southern",{"$f":"SUM(D58:H58)","v":44},7,9,11,7,4,13]
["Central",{"$f":"SUM(D59:H59)","v":32},8,7,4,4,10,7]
["Northern",{"$f":"SUM(D60:H60)","v":14},null,null,2,1,7,4]
[]
["Allstar Coaches (Minimum 3 Nationals)"]
[]
["Lynn Howell",{"$f":"SUM(D64:H64)","v":7},3,5,null,2]
["Jack Smeed",{"$f":"SUM(D65:H65)","v":6},1,3,1,2]
["Dwight Anderson",4,1,2,null,2]
["Tom Boytel",4,1,null,3,1]
["Mike Violini",4,null,null,4]
["Linda Raymond",4,null,1,1,2]
["Don MacIver",3,3,3]
["Brian Rossetti",3,2,1,null,2]
["Don Marshall",3,1,null,3]
["Don Sim",3,1,null,null,3]
["Gene Gagnon",3,1,1,2]
["Tom Alford",3,1,2,null,1]
["Don Gill",3,null,1,1,1]
["Doug Goodman",3,null,1,null,2]
["Louise Holmes",3,null,null,3]
["Geoff Wilson",{"$f":"SUM(D79:H79)","v":3},null,null,3]
["Debbie Boswell",3,null,null,2,1]
["Linda Raymond",{"$f":"SUM(D81:H81)","v":3},null,1,1,1]

{"sheet":"Western Canada","index":8,"n_rows":104,"n_cols":7,"rows_kept":104,"cut":false,"hidden":false,"merged":[]}
[null,"ALBERTA'S  WESTERN  CANADIAN  CHAMPIONS"]
[]
[null,null,null,"Prior  to Provincial Championships (1946 - 1973)"]
[]
[null,"1945 Telgraphic Competion.              1946 - 2 Centers Used: Regina & Edmonton.                   1947 One Site"]
[]
[null,"LADIES  SINGLES",null,null,null,"MENS SINGLES"]
[null,1946,"Jean Bray (Morgan) - Calgary",null,null,1946,"R.Jones - Edmonton"]
[null,1947,"Babs Jefferies (Oakenfold) - Calgary",null,null,1948,"Jack Smith - Calgary"]
[null,1949,"Lil Machon - Calgary",null,null,1969,"Jack Smeed - Southern"]
[null,1950,"Mary Currie - Calgary",null,null,1972,"Bill Murphy - Edmonton *"]
[null,1953,"Mary Currie - Calgary",null,null,1973,"Stan Hesp- Edmonton"]
[null,1954,"Mary Currie - Calgary  *"]
[null,1957,"Elvera Laughey (Forwick)- Edmonton *"]
[null,1960,"Mary Currie - Calgary"]
[null,1965,"Jeanette Neuberger (Smeed)-Southern"]
[null,1967,"Shirley Miller (Eby) - Calgary"]
[null,1968,"Shirley Miller (Eby) - Calgary"]
[null,1969,"Emma Johanson - Calgary"]
[null,1970,"Mary McConaghie - Edmonton"]
[]
[null,null,null,"LADIES  TEAMS"]
[]
[1945,"Calgary","Jean Bray (Morgan), Babs Jefferies (Oakenfold), Lil Machon, Millie Luft,"]
[1946,"Edmonton","Marg Asquin, Vi Foster, Evelyn Green, Marie Sangster, May Smith"]
[1947,"Calgary","Corinne Lucas, Helen Ager, Ev Graham, Tillie Peters, Millie Luft"]
[1949,"Calgary","Ella Young, Lil Machon, Millie Luft, Anne Palin, Ruth Harris"]
[1954,"Calgary","Lil Machon, Babs Oakenfold, Ruth Harris, Flo Befus, Mary Currie, Ruby Befus  - Coach Ken McDiarmid *"]
[1957,"Calgary","Mary Currie, Babs Oakenfold, Ruth Harris, Helen Ager, Joan Martin,Coach: Ron Young "]
[1963,"Edmonton","Sis Maltin, Marilyn Kerswell, Nell St.Lawrence, Del Gagnon, Loreen Mckellar, Emma Bush"]
[null,null,"Coach: Ann Tischer *"]
[1964,"Calgary","Shirley Miller (Eby),Mary Currie,Marie Stroh, Marna Thompson, Marg Patterson "]
[null,null,"Helen Blackburn: Coach - Bill Plumb"]
[1971,"Edmonton","Ebba Anderson, Nina Ible, Ruth Benson, Ivy Farrage, Mary McConaghie, Audrey Sakowsky(Marusin) "]
[null,null,"Chris Vaughan, Coach: - Gene Gagnon"]
[1972,"Southern","Jeanette Smeed, Shar Plato (Williams), Dianne Violini, Bea Salmon, Eleanor Dorgatti, Louise Plato,"]
[null,null,"Sandra Westling:  Coach -  Len Herring "]
[]
[null,null,null,"MIXED  TEAMS"]
[1947,"Calgary","Mary Currie, Anne Palin, Babs Jefferies(Oakenfold), Al Bannister, Bob Roggia "]
[1949,"Calgary","Mary Currie, Anne Palin, Millie Luft, Al Bannister, Tom Campbell"]
[1950,"Edmonton","Vern Mohs,Marg Peacock,Meg Warren,Marie Sangster,Jim Rutherford, "]
[1952,"Calgary","Babs Oakenfold, Mary Currie, Flo Befus, Banny Bannister, Mo Trevelyan"]
[1953,"Calgary","Babs Oakenfold, Flo Befus, Mary Currie, Sandy Luft, Mo Trevelyan"]
[1960,"Calgary","Flo Befus, Marry Currie, Cec Diett (Bullen),Marie Stroh, Jack Sadlick, Mo Trevelyan, Ron McGill "]
[null,null,"Coach: Ken McDiarmid"]
[1962,"Edmonton","Del Gagnon,Elvera Forwick, Meg Warren,Doris Lawrence,Peter Marusin,Jan Leenders,Len Karlson"]
[null,null,"Coach: Harry Crockett"]
[1964,"Calgary","Peg Herner, Helen Blackburn, Marie Stroh, Mary Currie, Tom Campbell, Stan Black, Don Sim "]
[null,null,"Coach: Bill Plumb *"]
[1970,"Southern","Dianne Violini, Lyndell Kurtz (Brekko),Jeanette Smeed, Gwen Kapcala, Jack Smeed, Bill Thomas,"]
[null,null,"Gary Tunbridge, Coach : - Len Herring"]
[1971,"Southern","Dianne Violini, Lyndell Kurtz (Brekko), Eleanor Dorigatti, Lil Fach, Steve Pederson, Jack Smeed"]
[null,null,"Bill Thomas, Coach: Frank Winchester"]
[1972,"All Star","Ebba Anderson, Irene Jevne, Emma Johanson, Donna Derin, Jack Smeed, Bill Thomas, "]
[null,null,"John Rempel : Coach -  Len Herring*"]
[]
[]
[null,null,null,"MENS  TEAMS"]
[1957,"Calgary","Neale Roche, Tom Campbell, Mo Trevelyan, Bob McColm, Ron Sansom, Al Bannister"]
[null,null,"Coach: Baldy Baldwin *"]
[]
[1967,"Southern","Jack Smeed, Stan Woodward, Bill Thomas, Bert Mezei, Gary Tunbridge, Bud Elliott"]
[null,null,"Coach: Reg Smeed *"]
[]
[1969,"Southern","Jack Smeed, Steve Pedersen, John Rempel, Bill Thomas, Ken Mogus, Stan Woodward,Francis Higa,"]
[null,null,"Coach : Len Herring"]
[]
[1972,"All Star","Stan Hesp, Clare Lakeman, Tom Campbell, Don Sim, Gary Tunbridge, John Rempel"]
[null,null,"Coach: Gene Gagnon *"]
[]
[null,null,null,"AGGREGATE"]
[]
[1946,"Edmonton","Marg Asquin, Vi Foster, Evelyn Green, Marie Sangster, Mary Smith + Mens team members."]
[1947,"Calgary","Mary Currie, Babs Jefferies(Oakenfold),Anne Palin,Corinne Lucas, Helen Ager, Ev Graham,Tillie Peters,"]
[null,null,"Millie Luft, Bob Roggia, Harry Johnson, Jimmie Haxton, Alec McWilliams, Bob Borland, Al Bannister"]
[null,null,"Percy Timms, Bill Rogers."]
[1949,"Calgary","Mary Currie, Anne Palin, Millie Luft, Ruth Harris, Ella Young, Lil Machon, Bob Borland, Ron Young"]
[null,null,"Vic Aldrich, Harry Johnson, Al Bannister, Tom Campbell "]
[1953,"Calgary","Mary Currie, Babs Oakenfold, Flo Befus, Teddy Fraser, Lil Machon, Marie Stroh, Ron Young, Sandy Luft "]
[null,null,"Mo Trevelyan, Walter Jarret, Bob Borland, Vic Aldrich "]
[1957,"Calgary","Neale Roche, Tom Campbell, Mo Trevelyan, Bob McColm, Ron Sansom, Al Bannister, Art Parker"]
[null,null," Mary Currie, Babs Oakenfold, Ruth Harris, Helen Ager, Joan Martin, Marg Dick, Irene Covey(Hill) Mary Border "]
[1960,"Calgary","Flo Befus, Marry Currie, Cec Diett (Bullen),Marie Stroh, Helen Ager, Sylvia Martin, Marg Peacock,"]
[null,null,"Jack Sadlick, Mo Trevelyan, Mike McClusky, Ron McGill, Bev Nicholls, Howie White -  Coach: Tom Campbell"]
[1964,"Calgary","Shirley Miller (Eby),Mary Currie,Marie Stroh,Helen Blackburn,Marg Patterson.Marna Thompson,Peg Herner"]
[null,null,"Tom Campbell,Stan Black,Don Sim,Bob French,Bob Miller,Earl Mosley Coach: Bill Plumb"]
[1966,"Calgary","Shirley Miller (Eby),Betty Nason, Emma Johanson, Helen Ager, Mary Currie,Sylvia Heater,Cathy Taylor."]
[null,null,"Howie Jaquish, Larry Burrell, Lloyd Herner, Stan Black, Ron Sansom, Bob French, Dave Alexander"]
[null,null,"Coaches: Al Bannister,  Earl Mosley"]
[1969,"Southern","Lyndell Kurtz (Brekko), Dianne Pedersen (Violini) ,Jeanette Smeed, Isabelle Bergman, Eleanor Dorigatti"]
[null,null,"Sumi Medoruma, Jack Smeed, Steve Pedersen, John Rempel, Bill Thomas, Ken Mogus,Stan Woodward"]
[null,null,"Francis Higa, Coach: Len Herring"]
[1972,"All Star","Stan Hesp, Clare Lakeman, Tom Campbell, Don Sim, Gary Tunbridge, John Rempel, "]
[null,null,"Ebba Anderson, Irene Jevne, Emma Johanson, Donna Derin, Jack Smeed, Bill Thomas"]
[null,null,"Coaches: Gene Gagnon, Len Herring *"]
[]
[]
[null,null,"* National Champion"]
[null,null,"National Championships 1953 Mens Singles and Teams Only  :  1954 Full Contingent"]
[null,null,"No National Championships from 1969 - 1971 :  Provincial All Star Teams competed in Western Canada"]
[null,null,"Zones consisted of 7 Ladies and 6 Men - 8 Game Total Pinfall"]
[null,null,"Singles  5 Ladies & 5 men top 50% advance after 4 games. "]
[null,null,"Mixed team comprised of  4 Ladies and 3 Men that also bowled on Ladies & Mens Teams."]

{"sheet":"40 Year Data- Don't Print","index":9,"n_rows":1079,"n_cols":5,"rows_kept":1079,"cut":false,"hidden":true,"merged":[]}
["Participant","Capacity","Year","National Champ"]
["Barett Gamble","CL",2007]
["Bert Mezei","CM",1977]
["Bill Francis","CL",1987]
["Bob Edmonds","CM",1995]
["Bob Edmonds","CM",1997]
["Bob Guthrie","CX",1989]
["Bob Guthrie","CM",2006]
["Brenda McCannel","CL",2011]
["Brian Goodhope","CL",1988]
["Brian Rossetti","CX",2002,"Y"]
["Brian Rossetti","CX",2006]
["Brian Rossetti","CM",2011,"Y"]
["Brian Stonehouse","CX",1987]
["Cassey Campbell","CX",2012]
["Cassey Campbell","CM",2013]
["Cisco Beyersbergen","CX",2007]
["Dale Holfeld","CX",2004]
["Danny Clapp","CX",1993]
["Danny Clapp","CX",1994]
["Debbie Boswell","CL",2002]
["Debbie Boswell","CL",2005]
["Debbie Boswell","CX",2011]
["Don Gill","CL",1986]
["Don Gill","CM",1981]
["Don Gill","CX",1990]
["Don MacIver","CM",1998,"Y"]
["Don MacIver","CM",2000,"Y"]
["Don MacIver","CM",2003,"Y"]
["Don Marshall","CL",1996,"Y"]
["Don Marshall","CL",1998]
["Don Marshall","CL",2000]
["Don Sim","CX",1976]
["Don Sim","CX",1977]
["Don Sim","CX",1985,"Y"]
["Doug Goodman","CM",1983]
["Doug Goodman","CX",1982]
["Doug Goodman","CX",1999]
["Dwight Anderson","CM",1988]
["Dwight Anderson","CM",1990,"Y"]
["Dwight Anderson","CX",1996]
["Dwight Anderson","CX",2005]
["Ed Gabrielson","CM",1992,"Y"]
["Ed Gabrielson","CM",1993,"Y"]
["Eric Andersen","CM",2001,"Y"]
["Fran Clark","CX",1984]
["Fran Clark","CX",2000,"Y"]
["Frank Fernetti","CX",1992,"Y"]
["Frank Fernetti","CX",2009,"Y"]
["Fred Anderson","CM",2002]
["Fred Anderson","CM",2009]
["Gary Abrams","CL",1991]
["Gene Gagnon","CL",1979]
["Gene Gagnon","CL",1980]
["Gene Gagnon","CM",1975,"Y"]
["Gerry Anderson","CL",2012,"Y"]
["Gerry Anderson","CL",2013]
["Geoff Wilson","CL",2008]
["Geoff Wilson","CL",2009]
["Geoff Wilson","CL",2010]
["George Lund","CM",1986]
["Gus Plato","CL",1981]
["Ian Fraser","CM",1994]
["Ian Fraser","CX",1986]
["Jack Smeed","CL",2003]
["Jack Smeed","CM",1979]
["Jack Smeed","CM",1982]
["Jack Smeed","CM",1987]
["Jack Smeed","CX",1974,"Y"]
["Jack Smeed","CX",1978]
["Jan Leenders","CM",1974]
["Jan Leenders","CX",1975]
["Jerry Kind","CX",1997]
["Jerry Mezei","CM",1985,"Y"]
["Jerry Mezei","CX",1981]
["Jim Hohne","CX",1991]
["John Martel","CM",1980]
["John Mathews","CX",1980]
["Ken Kurtz","CL",2006]
["Lawrence Fobert","CL",1997]
["Linda Raymond","CL",2001]
["Linda Raymond","CM",2007]
["Linda Raymond","CX",2008]
["Linda Raymond","CX",2010]
["Louise Holmes","CL",1984]
["Louise Holmes","CL",1985]
["Louise Holmes","CL",1990]
["Lynn Howell","CM",1996]
["Lynn Howell","CX",2003,"Y"]
["Lynn Howell","CM",2004]
["Lynn Howell","CM",2008,"Y"]
["Lynn Howell","CM",2010,"Y"]
["Lynn Howell","CM",2012]
["Lynn Howell","CX",2013]
["Mike Tweedy","CM",2005,"Y"]
["Mike Violini","CL",1983]
["Mike Violini","CL",1989]
["Mike Violini","CL",1992]
["Mike Violini","CL",1993]
["Neils Jensen","CL",1974]
["Neils Jensen","CL",1978]
["Pat Elliott","CL",1995]
["Rick Nowosad","CX",2001]
["Rick Wagner","CX",1998]
["Roy Cunningham","CL",1975,"Y"]
["Shar Williams","CL",1982,"Y"]
["Shar Williams","CX",1983]
["Shelley Struthers","CM",1999]
["Stan Hesp","CX",1979]
["Steve Pedersen","CL",1976]
["Tom Alford","CM",1984]
["Tom Alford","CX",1988,"Y"]
["Tom Alford","CM",1991]
["Tom Boytel","CL",1994,"Y"]
["Tom Boytel","CL",1999]
["Tom Boytel","CX",1995]
["Tom Boytel","CL",2004]
["Tom Campbell","CM",1976,"Y"]
["Vic Collomb","CL",1977]
["Vic Collomb","CM",1978]
["Wilf Kuss","CM",1989]
[]
[]
["Adam Kemp","X",2013]
["Adam Weber","X",2006]
["Adam Weber","M",2007]
["Adam Weber","MS",2007,"Y"]
["Adam Weber","X",2008]
["Adam Weber","M",2011,"Y"]
["Adam Weber","MS",2011]
["Adele Burynuik","LS",1990]
["Adele Burynuik","LS",1993]
["Adele Burynuik","L",1994,"Y"]
["Adele Burynuik","X",1995]
["Al Hong","M",1976,"Y"]
["Al Hong","X",1980]
["Al Kosciuk","X",2008]
["Al Noppers","M",1975,"Y"]
["Al Scheer","X",1977]
["Al Scheer","X",1984]
["Aldo Serblin","X",1977]
["Alice Kolibas","L",1981]
["Alison Roberts","L",2007]
["Alvina Brettnell (Cunningham)","X",1981]
["Alvina Brettnell (Cunningham)","L",1986]
["Alvina Brettnell (Cunningham)","L",1988]
["Alyssa Madsen","X",2008]
["Alyssa Madsen","X",2011]
["Amanda Bell","X",2013]
["Andrea Leavitt","X",2004]
["Andrea Ratcliffe","L",1990]
["Anita O'Callaghan","L",1987]
["Anita Robinson (Doell)","L",1975,"Y"]
["Anita Robinson (Doell)","L",1976]
["Anita Robinson (Doell)","L",1977]
["Anita Robinson (Doell)","L",1981]
["Ann Blackford","L",1974]
["Anne Norris","L",1996,"Y"]
["Anne Norris","L",1998]
["Annette Bruneau","L",1996,"Y"]
["Annette Bruneau","X",1999]
["Annette Bruneau","X",2001]
["Annette Bruneau","X",2002,"Y"]
["Annette Bruneau","L",2005]
["Annette Bruneau","L",2011]
["Annette Campbell (Gamborski)","X",2007]
["Annette Campbell (Gamborski)","L",2012,"Y"]
["Annette Campbell (Gamborski)","L",2013]
["Arlene Beerbaum","X",1982]
["Aaron Arndt","M",2012]
["Audrey Sakowsky","X",1979]
["Barb Douglas","X",1982]
["Barb Douglas","X",1984]
["Barb Masse","L",1980]
["Barett Gamble","M",1994]
["Barett Gamble","X",1995]
["Barett Gamble","M",1996]
["Barry Desnoyers","X",1975]
["Barry Ellert","X",1985,"Y"]
["Barry Martin","X",1983]
["Barry Urquhart","X",2005]
["Bea MacPhail","X",1984]
["Bernie Fournier","X",1990]
["Bernie Stotyn","M",1974]
["Bernie Sutton","MS",1974]
["Betty Jensen","L",1978]
["Betty Read","L",1987]
["Bev Gigliuk (Meyer)","LS",1983]
["Bev Gigliuk (Meyer)","L",1984]
["Bev Gigliuk (Meyer)","LS",1984,"Y"]
["Bev Gigliuk (Meyer)","L",1985]
["Bev Gigliuk (Meyer)","LS",1985]
["Bev Gigliuk (Meyer)","LS",1987]
["Bev Gigliuk (Meyer)","LS",1989]
["Bev Gigliuk (Meyer)","LS",1994]
["Bev Gigliuk (Meyer)","L",1997]
["Bev Magnus (Yaworenko)","L",2005]
["Bev Magnus (Yaworenko)","LS",2005]
["Bev Magnus (Yaworenko)","LS",2006]
["Bev Magnus (Yaworenko)","L",2008]
["Bev Magnus (Yaworenko)","L",2009]
["Bev Magnus (Yaworenko)","X",2010]
["Bev Magnus (Yaworenko)","L",2011]
["Bill Froehler","M",1988]
["Bill Murphy","M",1975,"Y"]
["Bill Schwalm","X",1984]
["Bill Todd","M",1985,"Y"]
["Bill Tronnes","M",1984]
["Billie Wood","L",1984]
["Billie Wood","L",1985]
["Blair Pizzey","M",2005,"Y"]
["Blair Pizzey","M",2006]
["Bob Bakos","M",1983]
["Bob Bruneau","M",1994]
["Bob Costanza","X",1981]
["Bob Guthrie","M",2001,"Y"]
["Bob Leenders","M",1974]
["Bob Leenders","M",1975,"Y"]
["Bob Leenders","M",1986]
["Bob Miller","X",1976]
["Bob Miller","X",1977]
["Bob Miller","X",1982]
["Bob Miller","M",1983]
["Bob Miller","X",1985,"Y"]
["Bob Miller","X",1998]
["Bob Miller","X",1999]
["Bob Power","M",1980]
["Bobbi Sisko (Verpy)","X",1997]
["Bobbi Sisko (Verpy)","L",2003]
["Bobbi Sisko (Verpy)","LS",2004]
["Bobbi Sisko (Verpy)","L",2006]
["Bobbi Sisko (Verpy)","LS",2007]
["Bonnie Clark","L",1982,"Y"]
["Brad Aasen","M",2005,"Y"]
["Brad Aasen","M",2006]
["Brad Aasen","X",2012]
["Brad Anderson","M",1990,"Y"]
["Brad Anderson","X",1996]
["Brad Anderson","M",1998,"Y"]
["Brad Sinclair","M",2001,"Y"]
["Brenda Blake","L",1988]
["Brenda McCannel","L",2005]
["Brenda McCannel","X",2008]
["Brenda McCannel (Closen)","L",2000]
["Brenda McCannel (Smud)","L",2001]
["Brenda McCannel","L",2010]
["Brenda Verpy","X",2009,"Y"]
["Bonnie McDonald (Olson)","LS",2011]
["Brent Chambers","M",1987]
["Brett Mapstone","M",2010,"Y"]
["Brett Mapstone","X",2012]
["Brett Mapstone","M",2013]
["Brett Wren","M",2008,"Y"]
["Brett Wren","X",2009,"Y"]
["Brett Wren","M",2012]
["Brian Goodhope","X",1986]
["Brian Goodhope","X",1993]
["Brian Goodhope","M",1996]
["Brian Hill","M",1995]
["Brian McGillivry","X",1984]
["Brian Murray","X",1991]
["Brian Murray","MS",2001]
["Brian Rossetti","M",1983]
["Brian Rossetti","M",1989]
["Brian Rossetti","M",1995]
["Brian Rossetti","M",1997]
["Brian Rossetti","M",1999]
["Brian Stonehouse","M",1977]
["Brian Stonehouse","M",1978]
["Brian Stonehouse","M",1979]
["Brian Stonehouse","M",1981]
["Brian Stonehouse","X",1992,"Y"]
["Brittney Johnson","L",2008]
["Brittney Johnson","L",2009]
["Brittney Johnson","X",2011]
["Bruce Morter","M",1986]
["Bruce Morter","M",1988]
["Bruce Morter","M",1990,"Y"]
["Bruce Morter","X",1994]
["Bruce Morter","M",1996]
["Bruce Morter","M",1998,"Y"]
["Bruce Morter","MS",1998]
["Bruce Morter","MS",1999,"Y"]
["Bruce Morter","M",2000,"Y"]
["Bruce Morter","M",2008,"Y"]
["Bruce Morter ","X",2003,"Y"]
["Bruce Morter","M",2010,"Y"]
["Bruce Morter","X",2013]
["Caity Shearer","X",2012]
["Caity Shearer","L",2013]
["CALGARY","M",1976,"Y"]
["CALGARY","X",1976]
["CALGARY","X",1977]
["CALGARY","X",1980]
["CALGARY","X",1982]
["CALGARY","M",1983]
["CALGARY","X",1983]
["CALGARY","X",1984]
["CALGARY","X",1985,"Y"]
["CALGARY","M",1989]
["CALGARY","M",1995]
["CALGARY","L",1996,"Y"]
["CALGARY","M",1997]
["CALGARY","L",1998]
["CALGARY","X",1998]
["CALGARY","M",1999]
["CALGARY","X",1999]
["CALGARY","L",2000]
["CALGARY","X",2000,"Y"]
["CALGARY","L",2001]
["CALGARY","X",2001]
["CALGARY","L",2002]
["CALGARY","X",2002,"Y"]
["CALGARY","L",2005]
["CALGARY","X",2006]
["CALGARY","M",2007]
["CALGARY","L",2008]
["CALGARY","X",2008]
["CALGARY ","L",1982,"Y"]
["CALGARY","L",2009]
["CALGARY","L",2010]
["CALGARY","X",2010]
["CALGARY","X",2011]
["CALGARY","L",2011]
["CALGARY","M",2011,"Y"]
["Carol Bradford","L",1985]
["Carol LaBoucane","L",1987]
["Carol LaBoucane","L",1991]
["Carol Swartz","X",1994]
["Carol Swartz","L",1999]
["Cassey Campbell","M",2003,"Y"]
["Cathie Calarco","L",1999]
["Cathie Calarco","X",2003,"Y"]
["CENTRAL","L",1984]
["CENTRAL","M",1984]
["CENTRAL","L",1985]
["CENTRAL","X",1988,"Y"]
["CENTRAL","X",1989]
["CENTRAL","L",1990]
["CENTRAL","X",1990]
["CENTRAL","M",1991]
["CENTRAL","M",1992,"Y"]
["CENTRAL","M",1993,"Y"]
["CENTRAL","L",1997]
["CENTRAL","M",2001,"Y"]
["CENTRAL","X",2004]
["CENTRAL","M",2005,"Y"]
["CENTRAL","M",2006]
["Chance Anderson","X",2007]
["Charleen Hodgins","L",1982,"Y"]
["Charleen Hodgins","LS",1982,"Y"]
["Chris MacKinnon","X",1976]
["Chris Runnalls","M",1974]
["Christine (Wren) Linnen","X",2005]
["Christine (Wren) Linnen","L",2012,"Y"]
["Cindy Christmann","L",1995]
["Clara Loyer","L",1991]
["Clare Lakeman","M",1975,"Y"]
["Clare Lakeman","M",1980]
["Clare Lakeman","M",1994]
["Colin Christensen","X",2010]
["Colin Keir","X",1983]
["Colin Keir","M",1989]
["Colin Keir","M",1995]
["Colin Keir","M",1997]
["Colin Keir","X",1998]
["Colin Keir","M",1999]
["Colleen Floberg (Gleed)","L",2003]
["Colleen Floberg (Gleed)","X",2009,"Y"]
["Curtis Kaplan ","X",2003,"Y"]
["Dale Lorenz","M",1988]
["Dan Meilke","M",1974]
["Dan Rattai","X",1987]
["Dan Rattai","X",1992,"Y"]
["Dan Rattai","X",1997]
["Dan Rattai","M",2002]
["Dan Rattai","M",2009]
["Danny Clapp","X",1995]
["Danny Gomboc","M",1999]
["Danny Gomboc","M",2011,"Y"]
["Darien McConaghie","L",1978]
["Darien McConaghie","X",1979]
["Darien McConaghie","L",1980]
["Darrell Bradley","M",2003,"Y"]
["Darrell Bradley","M",2004]
["Darrell Bradley","X",2012]
["Darrell Lagler","M",1977]
["Darrell Lagler","M",1979]
["Darrell Lagler","M",1981]
["Darrell Lagler","MS",1981,"Y"]
["Darren Bridge","M",2009]
["Darwin Romanchuk","X",1978]
["Dave Alexander","M",1999]
["Dave Lewis","M",1976,"Y"]
["Dave Lewis","X",1982]
["Dave Nelson","M",1984]
["Dave Sanderson","X",1985,"Y"]
["Debbie BoswelI","X",2001]
["Debbie Boswell","L",1998]
["Debbie Boswell","L",2000]
["Debbie Kingsmith","L",1982,"Y"]
["Debbie Poirier","X",1997]
["Del Gagnon","L",1978]
["Dennis Klien","X",1979]
["Dennis Westover","X",1980]
["Dennis Westover","X",1982]
["Derek Gall","M",2012]
["Derek Home","X",2001]
["Derek Home","X",2011]
["Derek Home","MS",2012]
["Derek Lewicki","M",2002]
["Dexter Wiseman","M",2010,"Y"]
["Dexter Wiseman","M",2013]
["Diana Long","L",1979]
["Diane Kaptey","L",1974]
["Diane Morrical","LS",1981]
["Diane Nelson","X",1991]
["Diane Vickery","X",1986]
["Dianne Gehring","L",1981]
["Dianne Moore","X",1989]
["Dianne Violini","X",1974,"Y"]
["Dianne Violini","L",1975,"Y"]
["Dianne Violini","L",1976]
["Dianne Violini","X",1978]
["Dianne Violini","LS",1980]
["Dianne Violini","L",1981]
["Dianne Violini","L",1983]
["Dianne Violini","LS",1986]
["Dianne Violini","LS",1988]
["Dianne Violini","L",1989]
["Dianne Violini","L",1992]
["Dianne Violini","L",1993]
["Dianne Violini","L",1995]
["Dianne Violini","LS",2001]
["Dianne Violini","LS",2008]
["Dianne Violini  ","L",2003]
["Dianne Violini  ","L",2006]
["Dianne Violini","LS",2010,"Y"]
["Dianne Violini","LS",2013]
["Don MacDonald","M",1986]
["Don Sim","M",1976,"Y"]
["Don Sim","M",1983]
["Don Sim","M",1989]
["Don Sim","X",1998]
["Donna Heidinger (Dolinsky)","L",1988]
["Donna Heidinger (Dolinsky)","L",1994,"Y"]
["Doug Campbell","X",1997]
["Doug Carritt","MS",1975]
["Doug Goodman","X",1980]
["Doug Goodman","M",1989]
["Doug Goodman","M",1995]
["Doug Goodman","X",2000,"Y"]
["Doug Key","X",1993]
["Doug Morrical","MS",1979]
["Doug Morrical","M",1992,"Y"]
["Doug Morrical","MS",1995]
["Duane Plato","M",1982]
["Duane Plato","X",1992,"Y"]
["Duane Plato","M",2002]
["Duane Plato","M",2009]
["Durwin Noble","X",1987]
["Durwin Noble","X",1997]
["Dwight Anderson","M",1975,"Y"]
["Dwight Anderson","M",1980]
["Dwight Anderson","M",1986]
["Dwight Anderson","MS",1986]
["Dwight Anderson","X",1993]
["Dwight Anderson","X",1994]
["Ebba Anderson","L",1974]
["Ebba Anderson","LS",1974]
["Ebba Anderson","X",1975]
["Ed Burwash","M",1981]
["Ed Burwash","M",1982]
["EDMONTON","L",1974]
["EDMONTON","M",1974]
["EDMONTON","M",1975,"Y"]
["EDMONTON","X",1975]
["EDMONTON","L",1978]
["EDMONTON","L",1979]
["EDMONTON","X",1979]
["EDMONTON","L",1980]
["EDMONTON","M",1980]
["EDMONTON","L",1986]
["EDMONTON","M",1986]
["EDMONTON","X",1986]
["EDMONTON","L",1988]
["EDMONTON","M",1988]
["EDMONTON","M",1990,"Y"]
["EDMONTON","X",1993]
["EDMONTON","L",1994,"Y"]
["EDMONTON","M",1994]
["EDMONTON","X",1994]
["EDMONTON","X",1995]
["EDMONTON","M",1996]
["EDMONTON","X",1996]
["EDMONTON","M",1998,"Y"]
["EDMONTON","L",1999]
["EDMONTON","M",2000,"Y"]
["EDMONTON","M",2003,"Y"]
["EDMONTON","X",2003,"Y"]
["EDMONTON","L",2004]
["EDMONTON","M",2004]
["EDMONTON","X",2005]
["EDMONTON","L",2007]
["EDMONTON","X",2007]
["EDMONTON","M",2008,"Y"]
["EDMONTON","M",2010,"Y"]
["EDMONTON","L",2012,"Y"]
["EDMONTON","X",2012]
["EDMONTON","M",2012]
["EDMONTON","L",2013]
["EDMONTON","X",2013]
["EDMONTON","M",2013]
["Eileen Ramsdale","X",1977]
["Eleanor Dorigatti","L",1976]
["Eleanor Dorigatti","X",1978]
["Eric Christensen","M",2011,"Y"]
["Erin Graham (O'Brien)","L",1978]
["Erin Graham (O'Brien)","L",1979]
["Faylene Valdes","X",1976]
["Fran Clarke","L",1982,"Y"]
["Fran Jones","X",1983]
["Fran Kelly","L",1992]
["Fran Kelly","L",1995]
["Frank Fernetti","M",1978]
["Frank Fernetti","X",1981]
["Frank Fernetti","M",1982]
["Fred Milner","X",1988,"Y"]
["Freida Schadl","L",1979]
["Gail Sweeny","X",2000,"Y"]
["Gale Morrical","L",1984]
["Gary Baird","M",2001,"Y"]
["Gary Baird","M",2005,"Y"]
["Gary Tunbridge","M",1984]
["Gayle Stuber","L",1983]
["Gene Balone","M",1976,"Y"]
["Gene Ziebarth","M",1991]
["Gene Ziebarth","M",1992,"Y"]
["Gene Ziebarth","MS",2000,"Y"]
["Gene Ziebarth","M",2001,"Y"]
["Gene Ziebarth","M",2006]
["Gene Ziebarth","MS",2009]
["George Hawkins","X",1975]
["Geraldine Ford","L",1984]
["Geraldine Ford","X",1988,"Y"]
["Gerard Parker","M",1988]
["Gerard Parker","M",1990,"Y"]
["Gerard Parker","X",1996]
["Germaine Knipple","L",1984]
["Germaine Knipple","L",1985]
["Gerry Anderson (Umphrey)","L",1974]
["Gerry Anderson (Umphrey)","L",1979]
["Gerry Anderson (Umphrey)","LS",1979]
["Gerry Anderson (Umphrey)","L",1980]
["Gerry Anderson (Umphrey)","L",1986]
["Gloria Unger","L",1987]
["Gord Mattern","M",2000,"Y"]
["Gord McCutcheon","M",1986]
["Greg Amundson","X",2005]
["Greg Dobbie","MS",1992]
["Greg Gigliuk","X",1982]
["Greg Gigliuk","X",1983]
["Greg Gigliuk","M",1984]
["Greg Gigliuk","X",1988,"Y"]
["Greg Gigliuk","M",1991]
["Greg Gigliuk","MS",1991]
["Greg Gigliuk","M",1993,"Y"]
["Greg Gigliuk","M",2005,"Y"]
["Greg Gigliuk","M",2006]
["Greg Koch","X",2000,"Y"]
["Greg Koch","X",2001]
["Halea Desutter","L",2012,"Y"]
["Halea Desutter","L",2013]
["Harry George","M",1992,"Y"]
["Harry Topliffe","X",1978]
["Harry Topliffe","M",1979]
["Harry Topliffe","X",1981]
["Harry Topliffe","M",1985,"Y"]
["Harvey Martin","X",1992,"Y"]
["Harvie Pocza","M",1999]
["Harvie Pocza","M",2007]
["Heather Owchar","L",2008]
["Heather Owchar","L",2009]
["Heather Weber","X",2002,"Y"]
["Heather Wellman","L",2004]
["Heather Wellman","X",2005]
["Heidi Mapstone (Andersen)","L",2004]
["Heidi Mapstone (Andersen)","L",2007]
["Heidi Mapstone (Andersen)","L",2012,"Y"]
["Heidi Mapstone (Andersen)","L",2013]
["Helen Barry","X",1983]
["Hilary Davies","L",1993]
["Hubert Mathews","X",1980]
["Ian Dobbie","MS",2002]
["Ian Dobbie","MS",2004]
["Ian Dobbie","MS",2011,null,"Replacement for Adam Weber"]
["Ian Fraser","M",1974]
["Isabelle Bergman","L",1975,"Y"]
["Ivy Murray","L",1987]
["Ivy Murray","L",1991]
["Jack Rumsey","M",1978]
["Jack Smeed","M",1978]
["Jack Smeed","M",1979]
["Jack Smeed","M",1981]
["Jacque Flach","L",1986]
["Jan Andersen","MS",1977,"Y"]
["Jan Andersen","M",1984]
["Jan Andersen","X",1988,"Y"]
["Jan Andersen","X",1990]
["Jan Andersen","M",1992,"Y"]
["Jan Andersen","M",1993,"Y"]
["Jan Bennett","LS",1978]
["Janet Froehlich","X",1981]
["Janice Lacoursiere (Jensen)","L",1986]
["Janice Lacoursiere (Jensen)","X",1993]
["Janice Lacoursiere (Jensen)","X",1994]
["Janice Lacoursiere (Jensen)","LS",1995]
["Janice Lacoursiere (Jensen)","L",1999]
["Janice Lacoursiere (Jensen)","L",2007]
["Janice Windjack (Tipler)","X",1986]
["Jeanette MacDonald","L",1980]
["Jeanette Smeed","X",1974,"Y"]
["Jeanette Smeed","L",1981]
["Jeanette Smeed","L",1983]
["Jeanette Smeed","L",1993]
["Jeanette Smeed","L",1995]
["Jeannette Beaulieu","L",1996,"Y"]
["Jeannette Doyle","X",2000,"Y"]
["Jennifer Baker","L",2012,"Y"]
["Jennifer Baker","L",2013]
["Jennifer Baldwin","X",2013]
["Jennifer Laden (Burgess)","X",2006]
["Jennifer Laden (Burgess)","X",2008]
["Jennifer Laden (Burgess)","L",2001]
["Jennifer Laden (Burgess)","L",2002]
["Jennifer Laden (Burgess)","X",2010]
["Jennifer Laden (Burgess)","L",2011]
["Jennifer Marshall","L",1996,"Y"]
["Jennifer Marshall","LS",1996,"Y"]
["Jennifer Marshall","LS",1997,"Y"]
["Jennifer Marshall","L",1998]
["Jennifer Marshall","LS",1999]
["Jennifer Marshall","L",2000]
["Jennifer Marshall","LS",2000]
["Jennifer Marshall","L",2001]
["Jennifer Marshall","L",2002]
["Jeri-Lee Miller","L",1997]
["Jeri-Lee Miller","L",2008]
["Jeri-Lee Miller","L",2010]
["Jerry Shepherd","X",1991]
["Jim Norkus","M",2000,"Y"]
["Jim Norkus","M",2003,"Y"]
["Jim Smeed","M",2002]
["Jim Smeed","X",2009,"Y"]
["Jim Vercammen","M",2009]
["Joan Robertson","X",1975]
["Joanne Dewalt","X",1981]
["Joe Wood","X",1984]
["Joe Wood","M",1997]
["John Blyth","X",1975]
["John Drazen","X",2000,"Y"]
["John Martel","M",1975,"Y"]
["John Martel","X",1979]
["John Martel","X",1993]
["John Martel","X",1994]
["John Martel","X",1996]
["John Rempel","M",1977]
["John Rempel","M",1987]
["Judy Grinde","L",1990]
["Judy Statton (Kanigan)","L",1996,"Y"]
["Judy Statton (Kanigan)","X",1998]
["Judy Statton (Kanigan)","L",2001]
["Judy Statton (Kanigan)","L",2002]
["Judy Statton (Kanigan)","X",2006]
["Judy Statton (Kanigan)","L",2008]
["Judy Statton (Kanigan)","L",2009]
["Justin Bander","X",1997]
["Kara Kurtz  ","L",2003]
["Karlyn Spitzer","L",1976]
["Kathy Dyer","X",1991]
["Kathy Gabrielson","X",1990]
["Kathy Robertson","L",1989]
["Ken King","X",1974,"Y"]
["Ken King","M",1977]
["Ken King","M",1978]
["Ken Klassen","X",1994]
["Ken Kurtz","M",1978]
["Ken Kurtz","M",1979]
["Ken Kurtz","X",1981]
["Ken Kurtz","M",1982]
["Ken Kurtz","M",1985,"Y"]
["Ken Kurtz","M",1987]
["Ken Malcomson","X",1974,"Y"]
["Ken Malcomson","M",1981]
["Ken Malcomson","M",1987]
["Ken Malcomson","MS",1987]
["Ken Malcomson","M",2002]
["Ken Norris","M",1983]
["Ken Norris","MS",1984]
["Ken Norris","M",1995]
["Ken Weitz","M",1979]
["Kevin Holdsworth","M",1995]
["Kevin Johnson","M",2000,"Y"]
["Kevin Kohut","M",1996]
["Kevin Noble","M",1990,"Y"]
["Kristin Heller (Pitman)","X",2012]
["Kristin Heller (Pitman)","X",2013]
["Kurtis Deering","M",2002]
["Kurtis Deering","M",2009]
["Kyle Greggain","X",2010]
["Lainie Mailer","L",1988]
["Lainie Mailer","L",1994,"Y"]
["Larae Hurst","L",2004]
["Larry Ellert","M",1976,"Y"]
["Larry Ellert","X",1980]
["Larry Scheer","MS",1980]
["Lawrence Fobert","M",1984]
["Lawrence Fobert","M",1991]
["Lawrence Fobert","M",1992,"Y"]
["Lawrence Fobert","M",1993,"Y"]
["Lawrence Fobert","MS",1993]
["Lawrence Fobert","M",2001,"Y"]
["Lawrence Fobert","M",2005,"Y"]
["Lawrence Fobert","M",2006]
["Lawrence Fobert","MS",2008]
["Leanne Sunderland (Eriksen)","L",1990]
["Leanne Sunderland (Eriksen)","X",1996]
["Len Madarash","X",1996]
["Len Madarash","M",1998,"Y"]
["Len Pharoah","M",1999]
["Len Pharoah","X",2000,"Y"]
["Len Pharoah","M",2007]
["Les Dyke","M",1977]
["Les Dyke","X",1978]
["Lill Broda","L",1994,"Y"]
["Linda Malcomson","X",1974,"Y"]
["Linda Malcomson","L",1975,"Y"]
["Linda Malcomson","L",1977]
["Linda Raymond","X",1998]
["Linda Raymond","X",2011]
["Lis Jorgensen","X",1989]
["Lisa Hargrove","X",1996]
["Lloyd Cox","X",1979]
["Lonnie Staples","X",1989]
["Lori Kelly","X",1987]
["Lori Kelly","L",1989]
["Lori Kelly","L",1992]
["Lori Kelly","L",1993]
["Lorraine Gervais","X",1977]
["Lorraine Gervais","X",1985,"Y"]
["Lousie Plato","L",1976]
["Lyndell Brekko","L",1975,"Y"]
["Lyndell Brekko","L",1976]
["Lyndell Brekko","L",1977]
["Lyndell Brekko","LS",1977]
["Lyndell Brekko","X",1978]
["Lyndell Brekko","L",1981]
["Lyndell Brekko","L",1983]
["Lyndell Brekko","X",1992,"Y"]
["Lynn Holt","X",1985,"Y"]
["Lynn Howell","X",1975]
["Lynn Howell","X",1986]
["Lynn Howell","M",1990,"Y"]
["Lynn Howell","MS",1990]
["Lynn Howell","M",1994]
["Lynn Howell","X",1995]
["Lynn Howell","M",1998,"Y"]
["Lynn Howell","M",2000,"Y"]
["Lynn Miller","X",1988,"Y"]
["Lynn Miller","L",1990]
["Lynn Miller","L",1997]
["Lynn Steinraths","L",1980]
["Marcy Clapp","X",1994]
["Marg Lovin","L",1989]
["Marg Sloan","X",1988,"Y"]
["Marie Blake","L",1987]
["Marie Davidson","X",1980]
["Marilyn Gray","X",1991]
["Mark Graff","X",2013]
["Mark Jackson","MS",1988]
["Mark Jackson","M",1991]
["Mark Jackson","M",2000,"Y"]
["Mark Jackson","M",2003,"Y"]
["Mark Jackson","M",2004]
["Mark Jackson","X","Central Mixed"]
["Mark Johnstone","M",2003,"Y"]
["Mark Johnstone","M",2004]
["Mark Johnstone","M",2008,"Y"]
["Mark Johnstone","MS",2010]
["Mark Johnstone","M",2010,"Y"]
["Mark Johnstone","M",2012]
["Mark Miller","M",2011,"Y"]
["Marlene Gill","L",1974]
["Marlene Gill","L",1978]
["Marlene Gill","X",1990]
["Marty Bush","M",1980]
["Marty Bush","M",2004]
["Masa Goshinmon","X",1987]
["Matt Schultz","M",2008,"Y"]
["Matt Schultz","M",2012]
["Matt Schultz","M",2013]
["Mearle Lepla","X",1985,"Y"]
["Mel Miller","M",1974]
["Melanie O'Brien","L",2007]
["Melinda Shilton","L",2002]
["Melinda Shilton","X",2006]
["Melynda Bruneau","L",2010]
["Melynda Bruneau","L",2011,null,"Alternate at Nationals for Tracy Smith"]
["Melissa Werrell","X",2007]
["Melissa Werrell","L",2012,"Y"]
["Michele Cavanaugh  ","L",1992]
["Michele Cavanaugh  ","L",1993]
["Michele Cavanaugh  ","L",1995]
["Michele Cavanaugh  ","L",2003]
["Michele Cavanaugh  ","L",2006]
["Michelle Gairdner","L",2004]
["Michelle Hoyle","X",1995]
["Michelle Hoyle","L",2004]
["Michelle Hoyle","L",2007]
["Michelle Hoyle","LS",2009]
["Michelle Hoyle","X",2012]
["Michelle Hoyle","L",2013]
["Michelle Kohut-Whyte","L",1999]
["Mike DiPietro","X",1987]
["Mike DiPietro","MS",1989]
["Mike DiPietro","M",1993,"Y"]
["Mike Hershe","X",2009,"Y"]
["Mike Lacoursiere","X",2005]
["Mike Lacoursiere","X",2007]
["Mike Lacoursiere","M",2012]
["Mike Masse","M",1980]
["Mike Tweedy","M",1993,"Y"]
["Mike Tweedy","M",1998,"Y"]
["Mike Tweedy","X",2004]
["Milly McGregor","L",1991]
["Murray Westling","M",1987]
["Nadine Kovacs","L",1977]
["Nancy Gervais","L",1985]
["Nancy Gervais","X",1989]
["Nancy Gervais","L",1990]
["Nancy Gervais","L",1997]
["Nancy Harris","L",1982,"Y"]
["Nancy Harris","X",1983]
["NORTHERN","L",1987]
["NORTHERN","L",1991]
["NORTHERN","X",1991]
["Owen Gottselig","M",1982]
["Pam Horne (Ibach)","L",1994,"Y"]
["Pam Stonehouse","X",1987]
["Pam Stonehouse","L",1989]
["Pamela Wilson (Marshall)","L",1998]
["Pamela Wilson (Marshall)","X",1999]
["Pamela Wilson (Marshall)","L",2000]
["Pamela Wilson (Marshall)","L",2009]
["Pamela Wilson (Marshall)","X",2010]
["Pearl Hindle","L",1979]
["Pearl Hindle","L",1980]
["Pearl Hindle","X",1986]
["Penny Hepfner (Noble)","L",1989]
["Penny Hepfner (Noble)","L",1992]
["Penny Hepfner (Noble)","L",1993]
["Penny Hepfner (Noble)","L",1995]
["Penny Hepfner (Noble)","LS",1998,"Y"]
["Penny Hepfner (Noble)","LS",2002]
["Penny Hepfner (Noble)","L",2003]
["Penny Hepfner (Noble)","L",2006]
["Perry Gilliam","X",2007]
["Perry Gilliam","M",2008,"Y"]
["Phyl Ward","L",1985]
["Rachel Auger (McDonald)","L",1996,"Y"]
["Rachel Auger (McDonald)","L",1998]
["Rachel Auger (McDonald)","L",2000]
["Rachel Auger (McDonald)","X",2002,"Y"]
["Randy Clarke","X",1995]
["Ray Miller","X",1976]
["Ray Sylvester","MS",1982]
["Reggie Zwicker","X",1985,"Y"]
["Rheva Dreger","L",1991]
["Rhonda Barber","L",1990]
["Rhonda Barber","L",1997]
["Rhonda Barber","X",2004]
["Rich Weber","X",2001]
["Rich Weber","X",2002,"Y"]
["Rich Weber","M",2007]
["Rich Weber","X",2011]
["Richard Salyzyn","M",1996]
["Rick Heinrich","MS",2006]
["Rick Heinrich","M",2007]
["Rick Heinrich","X",2010]
["Rick Wagner","X",1999]
["Rimo Nestor","M",2013]
["Rob Price","M",2009]
["Robert Shanas","M",1997]
["Robert Wolfson","X",2002,"Y"]
["Robert Wolfson","X",2006]
["Robin Powell","X",1986]
["Robin Stanton","X",1987]
["Rod Jensen","M",1980]
["Rollie Gervais","X",1988,"Y"]
["Rollie Gervais","M",1993,"Y"]
["Rollie Gervais","X",2004]
["Ron Sansom","X",1976]
["Rose Denman","X",1975]
["Roxane Doyle","L",1997]
["Roy Cunningham","X",1974,"Y"]
["Roy Cunningham","X",1978]
["Roy Cunningham","M",1981]
["Roy Cunningham","M",1982]
["Roy Cunningham","M",1985,"Y"]
["Roy Cunningham","MS",1985]
["Roy Cunningham","M",1989]
["Roy Cunningham","M",1997]
["Roy Cunningham","X",1999]
["Roy Kania","X",1986]
["Roy Kania","M",1988]
["Roy Kania","M",1990,"Y"]
["Russ Baldwin","M",1994]
["Russ Baldwin","MS",1994]
["Ryan Bader","M",1985,"Y"]
["Ryan Gardner","X",1991]
["Sandra Cockburn","X",1990]
["Sandra Helmer","X",1996]
["Sandra Helmer","L",1999]
["Sandra Helmer ","X",2003,"Y"]
["Sandra Hunt","L",1975,"Y"]
["Sandra Hunt","L",1977]
["Sandra Murray","X",1999]
["Sandy Barnes","L",1984]
["Sandy Ferguson","L",1983]
["Scott Laing","M",1997]
["Scott Laing","MS",1997]
["Scott Laing","X",1998]
["Sean Heller","M",2008,"Y"]
["Sean Heller","M",2010,"Y"]
["Sean Smith","M",2003,"Y"]
["Sean Smith","M",2004]
["Sean Smith","M",2013]
["Shannon Scott","X",1998]
["Shantelle Szuch","L",2005]
["Shar Williams (Plato)","LS",1975]
["Shar Williams (Plato)","LS",1976]
["Shar Williams (Plato)","L",1977]
["Sharlene Waldorf","L",1991]
["Sharlene Waldorf","LS",1991]
["Sharon Capewell","X",1976]
["Sharon Capewell","X",1977]
["Sharon Tarasoff","L",1988]
["Sharon Tarasoff","X",1993]
["Sheena Owens","L",2007]
["Sheena Owens","L",2011]
["Shelby Chrest","M",2006]
["Shelley Slator","X",2002,"Y"]
["Shelly Mayer","X",1992,"Y"]
["Sherry Lesyk","X",1979]
["Sherry Lesyk","L",1986]
["Shirley Burris","L",1983]
["SOUTHERN","X",1974,"Y"]
["SOUTHERN","L",1975,"Y"]
["SOUTHERN","L",1976]
["SOUTHERN","L",1977]
["SOUTHERN","M",1977]
["SOUTHERN","M",1978]
["SOUTHERN","X",1978]
["SOUTHERN","M",1979]
["SOUTHERN","L",1981]
["SOUTHERN","M",1981]
["SOUTHERN","X",1981]
["SOUTHERN","M",1982]
["SOUTHERN","L",1983]
["SOUTHERN","M",1985,"Y"]
["SOUTHERN","M",1987]
["SOUTHERN","X",1987]
["SOUTHERN","L",1989]
["SOUTHERN","L",1992]
["SOUTHERN","X",1992,"Y"]
["SOUTHERN","L",1993]
["SOUTHERN","L",1995]
["SOUTHERN","X",1997]
["SOUTHERN","M",2002]
["SOUTHERN","L",2003]
["SOUTHERN","L",2006]
["SOUTHERN","M",2009]
["SOUTHERN","X",2009,"Y"]
["Stacey Sanderson","L",2000]
["Stacey Sanderson","X",2001]
["Stacey Sanderson","L",2002]
["Stacey Sanderson","L",2005]
["Stacey Sanderson","L",2010]
["Stacey Sanderson","L",2011]
["Stan Black","MS",1976]
["Stan Black","X",1977]
["Stan Hesp","M",1986]
["Stan Hesp","M",1988]
["Stan Hesp","M",1990,"Y"]
["Stan Skoye","X",1989]
["Stan Skoye","M",1991]
["Steve Cummings","M",1996]
["Steve Cummings","MS",1996]
["Steve Pedersen","X",1974,"Y"]
["Steve Pedersen","M",1977]
["Steve Stasiuk","M",2004]
["Stevan Loertscher","M",2011,"Y"]
["Susan Anderson","LS",1992]
["Susan Anderson","L",1998]
["Susan Anderson","L",2001]
["Susan Anderson","L",2002]
["Susan Anderson","L",2005]
["Susan Gartry","L",2006]
["Tammy Richardson","X",1984]
["Tara Seitz","LS",2012]
["Teri Holt","X",1997]
["Teri Holt","X",2009,"Y"]
["Terry Farquharson","M",1983]
["Terry Farquharson","MS",1983]
["Terry Farquharson","M",1989]
["Terry Farquharson","X",1999]
["Terry Smithson","X",2001]
["Thora Swan","L",1992]
["Tim Wiseman","M",2010,"Y"]
["Tim Wiseman","M",2013]
["Tina Arychuk","X",2007]
["TJ Carriere","X",2002,"Y"]
["TJ Carriere","X",2006]
["TJ Carriere","M",2007]
["TJ Carriere","X",2008]
["TJ Carriere","M",2011,"Y"]
["Tom Alford","X",1979]
["Tom Alford","X",1989]
["Tom Alford","M",1992,"Y"]
["Tom Anderson","X",1982]
["Tom Anderson","X",1983]
["Tom Baker","M",1987]
["Tom Campbell","X",1976]
["Tom Stevenson","M",1985,"Y"]
["Tom Stevenson","X",1990]
["Tom Stevenson","M",1991]
["Tom Stevenson","M",1994]
["Tom Stevenson","M",1998,"Y"]
["Tom Stevenson","M",2000,"Y"]
["Tom Stevenson","X",2002,"Y"]
["Tom Stevenson  ","MS",2003]
["Tom Stevenson  ","MS",2005]
["Tom Stevenson  ","X",2011]
["Tony Steere","X",1990]
["Tony Steere ","X",2003,"Y"]
["Tori Hinzman","L",2006]
["Tracy Findlater","L",1982,"Y"]
["Tracy Holdsworth (Ranta)","X",2000,"Y"]
["Tracy Holdsworth (Ranta)","L",2001]
["Tracy Holdsworth (Ranta)","L",2010]
["Tracy Koftinoff","X",1980]
["Tracy Smith (Boytel)","X",1993]
["Tracy Smith (Boytel)","L",1994,"Y"]
["Tracy Smith (Boytel)","X",1995]
["Tracy Smith (Boytel)","L",1999]
["Tracy Smith (Boytel)","LS",2003]
["Tracy Smith (Boytel)","L",2004]
["Tracy Smith (Boytel)","L",2008]
["Tracy Smith (Boytel)","L",2009]
["Tracy Smith (Boytel)","L",2010]
["Tracy Smith (Boytel)","L",2011]
["Traudi Hesp","L",1974]
["Traudi Hesp","L",1978]
["Traudi Hesp","L",1979]
["Traudi Hesp","L",1986]
["Traudi Hesp","L",1988]
["Treena Neufeld ","X",2003,"Y"]
["Treena Neufeld ","X",2005]
["Tricia Mantai","X",2004]
["Trudy Kurtz","X",1992,"Y"]
["Victor Fobert","MS",2013,"Y"]
["Vince Chartier","M",2001,"Y"]
["Vince Chartier","X",2004]
["Vince Chartier","M",2005,"Y"]
["Wayne Adams","X",1991]
["Wilf Appel","M",1976,"Y"]
["Wilf Appel","MS",1978]
["Wilf Kuss","X",2000,"Y"]
["Yves Vezina","X",1989]